Workbook

Sheet Kalkulačka
B2: Výsledky | J2: Vstupy | O2: Konštanty
B3: Sumy | F3: Porovnanie možností | J3: Rozloha A zón | Q3: Lesy SR | R3: ŠL TANAP | S3: LPM Ulič | T3: Neštátni | U3: Štátni/Všetci
B4: Nájmy | C4: Nájmy | E4: =C34+D34 -> 1265468.31 | G4: Nájmy | H4: Výkupy | I4: Zámeny | J4: Rozloha národných parkov | O4: Strata štátneho rozpočtu (ha) | Q4: 27.5 | R4: 38.5 | S4: 17.3 | T4: 21.6
C5: Zmluvná starostlivosť | E5: =L34+M34 -> 1574740.165 | F5: 0 rokov | G5: ='Porovnanie alternatív'!B2 -> 3294641.539 | H5: ='Porovnanie alternatív'!C2 -> 74469493.97 | I5: ='Porovnanie alternatív'!D2 -> 2387266.829 | J5: Preferencia neštátny vs. štátny vlastník | O5: Strata obcí (ha) | T5: 2.3 | U5: 7.3
C6: Dopad na štátny rozpočet | E6: =E34+F34 -> -1.186805321e-10 | F6: 25 rokov | G6: ='Porovnanie alternatív'!B27 -> 43324382.34 | H6: ='Porovnanie alternatív'!C27 -> 96663794.56 | I6: ='Porovnanie alternatív'!D27 -> 29628518.77 | J6: Nájmy lesných pozemkov | M6: 1 | O6: Dopad na štátne podniky
C7: Dopad na obce | E7: =G34 -> -1.720579235e-11 | F7: 50 rokov | G7: ='Porovnanie alternatív'!B52 -> 55145275.75 | H7: ='Porovnanie alternatív'!C52 -> 103217833 | I7: ='Porovnanie alternatív'!D52 -> 37672935.97 | J7: Výkupy lesných pozemkov | M7: 1 | O7: Strata zisku štátnych podnikov (ha) | Q7: =VLOOKUP(Formy!$B$48,Formy!$D$49:$G$50,2,0) -> 17.6 | R7: =VLOOKUP(Formy!$B$48,Formy!$D$49:$G$50,3,0) -> 3.7 | S7: =VLOOKUP(Formy!$B$48,Formy!$D$49:$G$50,4,0) -> 37.3
C8: Dopad na štátne organizácie | E8: =H34 -> -6.625100468e-12 | F8: 75 rokov | G8: ='Porovnanie alternatív'!B77 -> 58636018.34 | H8: ='Porovnanie alternatív'!C77 -> 105153258.8 | I8: ='Porovnanie alternatív'!D77 -> 40048474.67 | J8: Nájmy pre poľovné združenia (eur / ha / rok) | M8: 2.5 | O8: Inštitucionálne zmeny (ha) | U8: 6
C9: Dopad na zamestnanosť | E9: =zam!I5 -> 0 | F9: 100 rokov | G9: ='Porovnanie alternatív'!B102 -> 59666844.3 | H9: ='Porovnanie alternatív'!C102 -> 105724795.4 | I9: ='Porovnanie alternatív'!D102 -> 40749977.83 | J9: Nájmy nelesných pozemkov (eur / ha / rok) | M9: 35 | O9: Diskontná miera | Q9: 0.05
C10: TOTAL | E10: =SUM(E4:E9) -> 2840208.475 | J10: Výkupy nelesných pozemkov (eur / ha) | M10: 1500
B11: Jednorazové poplatky | E11: =(F49+G49+K49+L49)*$M$12+H49*$M$13 -> 454433.0636 | J11: Zmluvná starostlivosť (eur / ha / rok) | M11: 40
J12: Jednorazové poplatky (eur / ha) | M12: 10
J13: Označovacie práce v teréne (eur / ha) | M13: 0.2
J14: Veľkosť nárazníkovej zóny (m)
B19: Výsledky po jednotlivých národných parkoch
B20: Výstupy | O20: Vstupy
B21: Národný park | C21: Bezzásahová zóna | L21: Nárazníková zóna | O21: Národný park | P21: Rozlohy | R21: Preferencia | S21: Náklady na lesné pozemky
C22: Nájmy | E22: Dopad na štátny rozpočet | G22: Dopad na obce | H22: Dopad na štátne organizácie | I22: Výkupy | L22: Zmluvná starostlivosť | P22: Národný park | Q22: A Zóna (% z NP) | R22: Štátne vs. Neštátne | S22: Nájmy (eur / ha / rok) | V22: Výkupy (eur / ha)
C23: Nájmy | D23: +poľovné združenia | E23: Nižší príjem z daní | F23: Inštitucionálne zmeny | I23: Lesné pozemky | J23: Nelesné pozemky | K23: Spolu | L23: Neštátni | M23: Štátni | N23: Spolu | S23: 5. SO | T23: 4. SO | U23: 3. SO | V23: 5. SO | W23: 4. SO | X23: 3. SO
B25: Veľká Fatra | C25: =(Podklady!I20*S25+Podklady!Q20*T25+Podklady!Y20*U25+Podklady!AG20*U25+(Podklady!J20+Podklady!R20+Podklady!Z20+Podklady!AH20)*$M$9) -> 78986.38408 | D25: =H40*$M$8 -> 15442.22335 | E25: =((D40-Podklady!F6)*$Q$4)+((F40-Podklady!I6)*$T$4) -> 0 | F25: =(H40-Podklady!D6)*$U$8 -> 0 | G25: =(D40-Podklady!F6)*$U$5+(F40-Podklady!I6)*$T$5 -> 0 | H25: =(D40-Podklady!F6)*$Q$7 -> 0 | I25: =(Podklady!I20*V25+Podklady!Q20*W25+Podklady!Y20*X25+Podklady!AG20*X25) -> 5438000.931 | J25: =(Podklady!J20+Podklady!R20+Podklady!Z20+Podklady!AH20)*$M$10 -> 66562.3997 | K25: =I25+J25 -> 5504563.33 | L25: =$M$11*(K40+L40) -> 77934.20323 | M25: =(I40+J40)*$M$11 -> 114199.0835 | N25: =L25+M25 -> 192133.2867 | O25: Veľká Fatra | P25: =VLOOKUP(Formy!$B$13,Formy!$D$14:$E$17,2,FALSE) -> 1 | Q25: =VLOOKUP(Formy!$B$1,Formy!$D$2:$M$6,2,FALSE) -> 0.1504164563 | R25: =VLOOKUP(Formy!$B$8,Formy!$D$9:$E$11,2,FALSE) -> 0.5 | S25: =48.952624448*Kalkulačka!$M$6 -> 48.95262445 | T25: =55.752869536*Kalkulačka!$M$6 -> 55.75286954 | U25: =58.9648916215709*Kalkulačka!$M$6 -> 58.96489162 | V25: =3437.85619314206*Kalkulačka!$M$7 -> 3437.856193 | W25: =3921*Kalkulačka!$M$7 -> 3921 | X25: =4141*Kalkulačka!$M$7 -> 4141
B26: Nízke Tatry | C26: =(Podklady!I21*S26+Podklady!Q21*T26+Podklady!Y21*U26+Podklady!AG21*U26+(Podklady!J21+Podklady!R21+Podklady!Z21+Podklady!AH21)*$M$9) -> 364369.0132 | D26: 29406.01521 | E26: =((D41-Podklady!F7)*$Q$4)+((F41-Podklady!I7)*$T$4) -> 0 | F26: =(H41-Podklady!D7)*$U$8 -> 1.091393642e-11 | G26: =(D41-Podklady!F7)*$U$5+(F41-Podklady!I7)*$T$5 -> 0 | H26: =(D41-Podklady!F7)*$Q$7 -> 0 | I26: =(Podklady!I21*V26+Podklady!Q21*W26+Podklady!Y21*X26+Podklady!AG21*X26) -> 23459379.99 | J26: =(Podklady!J21+Podklady!R21+Podklady!Z21+Podklady!AH21)*$M$10 -> 1410944.22 | K26: =I26+J26 -> 24870324.21 | L26: 97303.63385 | M26: 171787.564 | N26: =L26+M26 -> 269091.1979 | O26: Nízke Tatry | P26: =VLOOKUP(Formy!$B$13,Formy!$D$14:$E$17,2,FALSE) -> 1 | Q26: =VLOOKUP(Formy!$B$1,Formy!$D$2:$M$6,3,FALSE) -> 0.1532377127 | R26: =VLOOKUP(Formy!$B$8,Formy!$D$9:$E$11,2,FALSE) -> 0.5 | S26: =43.909847072*Kalkulačka!$M$6 -> 43.90984707 | T26: =68.66640872*Kalkulačka!$M$6 -> 68.66640872 | U26: =51.7952577712647*Kalkulačka!$M$6 -> 51.79525777 | V26: =3107.88103568929*Kalkulačka!$M$7 -> 3107.881036 | W26: =3921*Kalkulačka!$M$7 -> 3921 | X26: =3666*Kalkulačka!$M$7 -> 3666
B27: PIENAP | C27: =(Podklady!I22*S27+Podklady!Q22*T27+Podklady!Y22*U27+Podklady!AG22*U27+(Podklady!J22+Podklady!R22+Podklady!Z22+Podklady!AH22)*$M$9) -> 3383.302836 | D27: 691.684903 | E27: =((D42-Podklady!F8)*$R$4)+((F42-Podklady!I8)*$T$4) -> 1.554667506e-12 | F27: =(H42-Podklady!D8)*$U$8 -> 0 | G27: =(D42-Podklady!F8)*$U$5+(F42-Podklady!I8)*$T$5 -> 2.565059276e-13 | H27: =(D42-Podklady!F8)*$R$7 -> 1.051603249e-13 | I27: =(Podklady!I22*V27+Podklady!Q22*W27+Podklady!Y22*X27+Podklady!AG22*X27) -> 157694.3547 | J27: =(Podklady!J22+Podklady!R22+Podklady!Z22+Podklady!AH22)*$M$10 -> 7040.910677 | K27: 164735.2654 | L27: 31926.35734 | M27: 5933.538108 | N27: 37859.89545 | O27: PIENAP | P27: =VLOOKUP(Formy!$B$13,Formy!$D$14:$E$17,2,FALSE) -> 1 | Q27: =VLOOKUP(Formy!$B$1,Formy!$D$2:$M$6,4,FALSE) -> 0.07452736363 | R27: =VLOOKUP(Formy!$B$8,Formy!$D$9:$E$11,2,FALSE) -> 0.5 | S27: =72.45808752*Kalkulačka!$M$6 -> 72.45808752 | T27: =72.89756656*Kalkulačka!$M$6 -> 72.89756656 | U27: =78.3246824028949*Kalkulačka!$M$6 -> 78.3246824 | V27: =3549.60496850945*Kalkulačka!$M$7 -> 3549.604969 | W27: =3921*Kalkulačka!$M$7 -> 3921 | X27: =3837*Kalkulačka!$M$7 -> 3837
B28: TANAP | C28: =(Podklady!I23*S28+Podklady!Q23*T28+Podklady!Y23*U28+Podklady!AG23*U28+(Podklady!J23+Podklady!R23+Podklady!Z23+Podklady!AH23)*$M$9) -> 270230.024 | D28: 78061.64839 | E28: =((D43-Podklady!F9)*$R$4)+((F43-Podklady!I9)*$T$4) -> -1.093212632e-10 | F28: =(H43-Podklady!D9)*$U$8 -> -2.182787284e-11 | G28: =(D43-Podklady!F9)*$U$5+(F43-Podklady!I9)*$T$5 -> -1.746229827e-11 | H28: =(D43-Podklady!F9)*$R$7 -> -6.730260793e-12 | I28: =(Podklady!I23*V28+Podklady!Q23*W28+Podklady!Y23*X28+Podklady!AG23*X28) -> 13615358.95 | J28: =(Podklady!J23+Podklady!R23+Podklady!Z23+Podklady!AH23)*$M$10 -> 3262968.115 | K28: 16878327.06 | L28: 221109.0227 | M28: 227277.239 | N28: 448386.2617 | O28: TANAP | P28: =VLOOKUP(Formy!$B$13,Formy!$D$14:$E$17,2,FALSE) -> 1 | Q28: =VLOOKUP(Formy!$B$1,Formy!$D$2:$M$6,5,FALSE) -> 0.4225954285 | R28: =VLOOKUP(Formy!$B$8,Formy!$D$9:$E$11,2,FALSE) -> 0.5 | S28: =32.732413168*Kalkulačka!$M$6 -> 32.73241317 | T28: =51.144301936*Kalkulačka!$M$6 -> 51.14430194 | U28: =40.2718605139066*Kalkulačka!$M$6 -> 40.27186051 | V28: =2296.1210636809*Kalkulačka!$M$7 -> 2296.121064 | W28: =3921*Kalkulačka!$M$7 -> 3921 | X28: =2825*Kalkulačka!$M$7 -> 2825
B29: Malá Fatra | C29: =(Podklady!I24*S29+Podklady!Q24*T29+Podklady!Y24*U29+Podklady!AG24*U29+(Podklady!J24+Podklady!R24+Podklady!Z24+Podklady!AH24)*$M$9) -> 174557.6104 | D29: 10454.825 | E29: =((D44-Podklady!F10)*$Q$4)+((F44-Podklady!I10)*$T$4) -> 0 | F29: =(H44-Podklady!D10)*$U$8 -> 0 | G29: =(D44-Podklady!F10)*$U$5+(F44-Podklady!I10)*$T$5 -> 0 | H29: =(D44-Podklady!F10)*$Q$7 -> 0 | I29: =(Podklady!I24*V29+Podklady!Q24*W29+Podklady!Y24*X29+Podklady!AG24*X29) -> 8882247.256 | J29: =(Podklady!J24+Podklady!R24+Podklady!Z24+Podklady!AH24)*$M$10 -> 721623.4046 | K29: 9603870.661 | L29: 132410.4978 | M29: 24268.23149 | N29: 156678.7293 | O29: Malá Fatra | P29: =VLOOKUP(Formy!$B$13,Formy!$D$14:$E$17,2,FALSE) -> 1 | Q29: =VLOOKUP(Formy!$B$1,Formy!$D$2:$M$6,6,FALSE) -> 0.1951919214 | R29: =VLOOKUP(Formy!$B$8,Formy!$D$9:$E$11,2,FALSE) -> 0.5 | S29: =54.34343824*Kalkulačka!$M$6 -> 54.34343824 | T29: =70.555465344*Kalkulačka!$M$6 -> 70.55546534 | U29: =81.6099645442344*Kalkulačka!$M$6 -> 81.60996454 | V29: =3060.44051784465*Kalkulačka!$M$7 -> 3060.440518 | W29: =3921*Kalkulačka!$M$7 -> 3921 | X29: =4596*Kalkulačka!$M$7 -> 4596
B30: Poloniny | C30: =(Podklady!I25*S30+Podklady!Q25*T30+Podklady!Y25*U30+Podklady!AG25*U30+(Podklady!J25+Podklady!R25+Podklady!Z25+Podklady!AH25)*$M$9) -> 45892.23098 | D30: 4700.450086 | E30: =((D45-Podklady!F11)*$S$4)+((F45-Podklady!I11)*$T$4) -> 0 | F30: =(H45-Podklady!D11)*$U$8 -> 0 | G30: =(D45-Podklady!F11)*$U$5+(F45-Podklady!I11)*$T$5 -> 0 | H30: =(D45-Podklady!F11)*$S$7 -> 0 | I30: =(Podklady!I25*V30+Podklady!Q25*W30+Podklady!Y25*X30+Podklady!AG25*X30) -> 1990866.666 | J30: =(Podklady!J25+Podklady!R25+Podklady!Z25+Podklady!AH25)*$M$10 -> 61039.59861 | K30: 2051906.265 | L30: 56411.54942 | M30: 46730.62932 | N30: 103142.1787 | O30: Poloniny | P30: =VLOOKUP(Formy!$B$13,Formy!$D$14:$E$17,2,FALSE) -> 1 | Q30: =VLOOKUP(Formy!$B$1,Formy!$D$2:$M$6,7,FALSE) -> 0.0611329773 | R30: =VLOOKUP(Formy!$B$8,Formy!$D$9:$E$11,2,FALSE) -> 0.5 | S30: =76.599535376*Kalkulačka!$M$6 -> 76.59953538 | T30: =89.024663728*Kalkulačka!$M$6 -> 89.02466373 | U30: =77.5952218214776*Kalkulačka!$M$6 -> 77.59522182 | V30: =3429.42232330301*Kalkulačka!$M$7 -> 3429.422323 | W30: =3921*Kalkulačka!$M$7 -> 3921 | X30: =3474*Kalkulačka!$M$7 -> 3474
B31: Muránska planina | C31: =(Podklady!I26*S31+Podklady!Q26*T31+Podklady!Y26*U31+Podklady!AG26*U31+(Podklady!J26+Podklady!R26+Podklady!Z26+Podklady!AH26)*$M$9) -> 13510.11121 | D31: =H46*$M$8 -> 6231.612162 | E31: =((D46-Podklady!F12)*$Q$4)+((F46-Podklady!I12)*$T$4) -> 0 | F31: =(H46-Podklady!D12)*$U$8 -> 0 | G31: =(D46-Podklady!F12)*$U$5+(F46-Podklady!I12)*$T$5 -> 0 | H31: =(D46-Podklady!F12)*$Q$7 -> 0 | I31: =(Podklady!I26*V31+Podklady!Q26*W31+Podklady!Y26*X31+Podklady!AG26*X31) -> 753679.3786 | J31: =(Podklady!J26+Podklady!R26+Podklady!Z26+Podklady!AH26)*$M$10 -> 11121.22551 | K31: 764800.6041 | L31: 25403.01253 | M31: 94128.76802 | N31: 119531.7806 | O31: Muránska planina | P31: =VLOOKUP(Formy!$B$13,Formy!$D$14:$E$17,2,FALSE) -> 1 | Q31: =VLOOKUP(Formy!$B$1,Formy!$D$2:$M$6,8,FALSE) -> 0.1234039319 | R31: =VLOOKUP(Formy!$B$8,Formy!$D$9:$E$11,2,FALSE) -> 0.5 | S31: =58.495618272*Kalkulačka!$M$6 -> 58.49561827 | T31: =76.032493264*Kalkulačka!$M$6 -> 76.03249326 | U31: =94.9210997631313*Kalkulačka!$M$6 -> 94.92109976 | V31: =3327.16165150455*Kalkulačka!$M$7 -> 3327.161652 | W31: =3921*Kalkulačka!$M$7 -> 3921 | X31: =5399*Kalkulačka!$M$7 -> 5399
B32: Slovenský kras | C32: =(Podklady!I27*S32+Podklady!Q27*T32+Podklady!Y27*U32+Podklady!AG27*U32+(Podklady!J27+Podklady!R27+Podklady!Z27+Podklady!AH27)*$M$9) -> 36325.40988 | D32: 3010.15667 | E32: =((D47-Podklady!F13)*$Q$4)+((F47-Podklady!I13)*$T$4) -> 0 | F32: =(H47-Podklady!D13)*$U$8 -> 0 | G32: =(D47-Podklady!F13)*$U$5+(F47-Podklady!I13)*$T$5 -> 0 | H32: =(D47-Podklady!F13)*$Q$7 -> 0 | I32: =(Podklady!I27*V32+Podklady!Q27*W32+Podklady!Y27*X32+Podklady!AG27*X32) -> 1356779.475 | J32: =(Podklady!J27+Podklady!R27+Podklady!Z27+Podklady!AH27)*$M$10 -> 9932.582403 | K32: 1366712.058 | L32: 48082.22302 | M32: 33615.4093 | N32: 81697.63232 | O32: Slovenský kras | P32: =VLOOKUP(Formy!$B$13,Formy!$D$14:$E$17,2,FALSE) -> 1 | Q32: =VLOOKUP(Formy!$B$1,Formy!$D$2:$M$6,9,FALSE) -> 0.03503591379 | R32: =VLOOKUP(Formy!$B$8,Formy!$D$9:$E$11,2,FALSE) -> 0.5 | S32: =67.729142208*Kalkulačka!$M$6 -> 67.72914221 | T32: =71.037760976*Kalkulačka!$M$6 -> 71.03776098 | U32: =82.0951413023086*Kalkulačka!$M$6 -> 82.0951413 | V32: =2545.9744576627*Kalkulačka!$M$7 -> 2545.974458 | W32: =3921*Kalkulačka!$M$7 -> 3921 | X32: =3086*Kalkulačka!$M$7 -> 3086
B33: Slovenský raj | C33: =(Podklady!I28*S33+Podklady!Q28*T33+Podklady!Y28*U33+Podklady!AG28*U33+(Podklady!J28+Podklady!R28+Podklady!Z28+Podklady!AH28)*$M$9) -> 118510.6285 | D33: 11704.9788 | E33: =((D48-Podklady!F14)*$Q$4)+((F48-Podklady!I14)*$T$4) -> 0 | F33: =(H48-Podklady!D14)*$U$8 -> 0 | G33: =(D48-Podklady!F14)*$U$5+(F48-Podklady!I14)*$T$5 -> 0 | H33: =(D48-Podklady!F14)*$Q$7 -> 0 | I33: =(Podklady!I28*V33+Podklady!Q28*W33+Podklady!Y28*X33+Podklady!AG28*X33) -> 11224324.55 | J33: =(Podklady!J28+Podklady!R28+Podklady!Z28+Podklady!AH28)*$M$10 -> 10756.72661 | K33: 11235081.28 | L33: 67847.19923 | M33: 98372.00345 | N33: 166219.2027 | O33: Slovenský raj | P33: =VLOOKUP(Formy!$B$13,Formy!$D$14:$E$17,2,FALSE) -> 1 | Q33: =VLOOKUP(Formy!$B$1,Formy!$D$2:$M$6,10,FALSE) -> 0.2412064586 | R33: =VLOOKUP(Formy!$B$8,Formy!$D$9:$E$11,2,FALSE) -> 0.5 | S33: =54.992841904*Kalkulačka!$M$6 -> 54.9928419 | T33: =67.470367328*Kalkulačka!$M$6 -> 67.47036733 | U33: =45.505043525192*Kalkulačka!$M$6 -> 45.50504353 | V33: =5219.51119664101*Kalkulačka!$M$7 -> 5219.511197 | W33: =3921*Kalkulačka!$M$7 -> 3921 | X33: =4319*Kalkulačka!$M$7 -> 4319
B34: TOTAL | C34: =SUM(C25:C33) -> 1105764.715 | D34: 159703.5946 | E34: -1.077665956e-10 | F34: -1.091393642e-11 | G34: -1.720579235e-11 | H34: -6.625100468e-12 | I34: 66878331.56 | J34: 5561989.183 | K34: 72440320.74 | L34: 758427.6991 | M34: 816312.4662 | N34: 1574740.165
B36: Rozlohy
B37: Národný park | C37: Rozloha NP (ha) | D37: Rozloha A Zóny (ha) | I37: Rozloha nárazníkovej zóny (ha)
D38: Štátne | F38: Neštátne | H38: Spolu | I38: Štátne | K38: Neštátne | M38: Spolu
D39: Lesné | E39: Nelesné | F39: Lesné | G39: Nelesné | I39: Lesné | J39: Nelesné | K39: Lesné | L39: Nelesné
B40: Veľká Fatra | C40: =P25*Podklady!B6 -> 41065.24972 | D40: =Podklady!AI20 -> 4406.224931 | E40: =Podklady!AJ20 -> 144.4894737 | F40: =Podklady!AK20 -> 1581.800001 | G40: =Podklady!AL20 -> 44.37493313 | H40: =D40+E40+F40+G40 -> 6176.88934 | I40: =Podklady!AI48 -> 2502.970253 | J40: =Podklady!AJ48 -> 352.0068334 | K40: =Podklady!AK48 -> 1530.04823 | L40: =Podklady!AL48 -> 418.3068506 | M40: =I40+J40+K40+L40 -> 4803.332167
B41: Nízke Tatry | C41: =P26*Podklady!B7 -> 76759.21208 | D41: =Podklady!AI21 -> 2297.361335 | E41: =Podklady!AJ21 -> 976.0632825 | F41: =Podklady!AK21 -> 7548.351988 | G41: =Podklady!AL21 -> 940.6294798 | H41: 11762.40609 | I41: =Podklady!AI49 -> 3875.099781 | J41: =Podklady!AJ49 -> 419.5893206 | K41: =Podklady!AK49 -> 1973.880748 | L41: =Podklady!AL49 -> 458.710098 | M41: 6727.279947
B42: PIENAP | C42: =P27*Podklady!B8 -> 3712.380899 | D42: =Podklady!AI22 -> 227.0960261 | E42: =Podklady!AJ22 -> 0.4581060667 | F42: =Podklady!AK22 -> 44.42588855 | G42: =Podklady!AL22 -> 4.693940451 | H42: 276.6739612 | I42: =Podklady!AI50 -> 108.3031794 | J42: =Podklady!AJ50 -> 40.03527326 | K42: =Podklady!AK50 -> 578.741098 | L42: =Podklady!AL50 -> 219.4178354 | M42: 946.4973862
B43: TANAP | C43: =P28*Podklady!B9 -> 73887.83042 | D43: =Podklady!AI23 -> 14648.37882 | E43: =Podklady!AJ23 -> 8471.246742 | F43: =Podklady!AK23 -> 5929.721721 | G43: =Podklady!AL23 -> 2175.312077 | H43: 31224.65936 | I43: =Podklady!AI51 -> 5344.597018 | J43: =Podklady!AJ51 -> 337.3339565 | K43: =Podklady!AK51 -> 5074.585314 | L43: =Podklady!AL51 -> 453.1402535 | M43: 11209.65654
B44: Malá Fatra | C44: =P29*Podklady!B10 -> 21424.70841 | D44: =Podklady!AI24 -> 769.9491437 | E44: =Podklady!AJ24 -> 28.62121627 | F44: =Podklady!AK24 -> 2902.27737 | G44: =Podklady!AL24 -> 481.0822697 | H44: 4181.929999 | I44: =Podklady!AI52 -> 577.2741061 | J44: =Podklady!AJ52 -> 29.43168114 | K44: =Podklady!AK52 -> 2719.775213 | L44: =Podklady!AL52 -> 590.4872317 | M44: 3916.968232
B45: Poloniny | C45: =P30*Podklady!B11 -> 30755.57772 | D45: =Podklady!AI25 -> 1227.965917 | E45: =Podklady!AJ25 -> 30.99568094 | F45: =Podklady!AK25 -> 580.5253709 | G45: =Podklady!AL25 -> 40.69306574 | H45: 1880.180035 | I45: =Podklady!AI53 -> 1084.619527 | J45: =Podklady!AJ53 -> 83.64620563 | K45: =Podklady!AK53 -> 1098.846604 | L45: =Podklady!AL53 -> 311.4421315 | M45: 2578.554468
B46: Muránska planina | C46: =P31*Podklady!B12 -> 20199.07167 | D46: =Podklady!AI26 -> 2246.24321 | E46: =Podklady!AJ26 -> 12.46428184 | F46: =Podklady!AK26 -> 226.5232224 | G46: =Podklady!AL26 -> 7.414150337 | H46: 2492.644865 | I46: =Podklady!AI54 -> 2195.29108 | J46: =Podklady!AJ54 -> 157.9281208 | K46: =Podklady!AK54 -> 325.6039185 | L46: =Podklady!AL54 -> 309.4713948 | M46: 2988.294514
B47: Slovenský kras | C47: =P32*Podklady!B13 -> 34366.52674 | D47: =Podklady!AI27 -> 487.322869 | E47: =Podklady!AJ27 -> 177.2064171 | F47: =Podklady!AK27 -> 532.9116603 | G47: =Podklady!AL27 -> 6.621721602 | H47: 1204.062668 | I47: =Podklady!AI55 -> 767.1699851 | J47: =Podklady!AJ55 -> 73.21524741 | K47: =Podklady!AK55 -> 909.1503435 | L47: =Podklady!AL55 -> 292.905232 | M47: 2042.440808
B48: Slovenský raj | C48: =P33*Podklady!B14 -> 19412.088 | D48: =Podklady!AI28 -> 2463.07106 | E48: =Podklady!AJ28 -> 61.29419337 | F48: =Podklady!AK28 -> 2150.455116 | G48: =Podklady!AL28 -> 7.171151074 | H48: =D48+E48+F48+G48 -> 4681.99152 | I48: =Podklady!AI56 -> 2315.924589 | J48: =Podklady!AJ56 -> 143.3754977 | K48: =Podklady!AK56 -> 1334.463777 | L48: =Podklady!AL56 -> 361.7162033 | M48: 4155.480067
B49: SPOLU | C49: =SUM(C40:C48) -> 321582.6457 | D49: =SUM(D40:D48) -> 28773.61331 | E49: 9902.839394 | F49: 21496.99234 | G49: 3707.992789 | H49: 63881.43783 | I49: 18771.24952 | J49: 1636.562136 | K49: 15545.09525 | L49: 3415.597231 | M49: 39368.50413

Sheet Podklady
A1: Terajší stav národných parkov
A2: NP | B2: Rozloha parku | C2: Pomer 5. stupeň / NP | D2: 5. stupeň | K2: 4. stupeň | S2: 3. stupeň | AA2: 2. stupeň
D3: Celkovo | E3: Štátne | H3: Neštátne | K3: Celkovo | L3: Štátne | O3: Neštátne | S3: Celkovo | T3: Štátne | W3: Neštátne | AA3: Celkovo | AB3: Štátne | AE3: Neštátne
E4: Celkovo | L4: Celkovo | O4: Celkovo | Q4: Lesné | R4: Nelesné | T4: Celkovo | W4: Celkovo | Y4: Lesné | Z4: Nelesné | AB4: Celkovo | AE4: Celkovo | AG4: Lesné | AH4: Nelesné
D5: rozloha | E5: rozloha | F5: Lesné | G5: Nelesné | H5: Celkovo | I5: Lesné | J5: Nelesné | K5: rozloha | L5: rozloha | M5: Lesné | N5: Nelesné | O5: rozloha | P5: koef | Q5: rozloha | R5: rozloha | T5: rozloha | U5: Lesné | V5: Nelesné | W5: rozloha | X5: koef | Y5: rozloha | Z5: rozloha | AB5: rozloha | AC5: Lesné | AD5: Nelesné | AE5: rozloha | AF5: koef | AG5: rozloha | AH5: rozloha
A6: Veľká Fatra | B6: 41065.24972 | C6: =D6/B6 -> 0.1504164563 | D6: 6176.88934 | E6: =F6+G6 -> 4550.714405 | F6: 4406.224931 | G6: 144.4894737 | H6: =I6+J6 -> 1626.174934 | I6: 1581.800001 | J6: 44.37493313 | K6: 192.8335472 | L6: =M6+N6 -> 58.43737007 | M6: 32.70044098 | N6: 25.73692909 | O6: =Q6+R6 -> 134.3961771 | P6: =O6/K6 -> 0.6969543374 | Q6: 125.2516428 | R6: 9.144534289 | S6: 34694.16775 | T6: =U6+V6 -> 21044.06183 | U6: 18588.86908 | V6: 2455.192751 | W6: =Y6+Z6 -> 13650.10592 | X6: =W6/S6 -> 0.3934409384 | Y6: 10571.14479 | Z6: 3078.96113 | AA6: 1.359082299 | AB6: =AC6+AD6 -> 0.225611985 | AC6: 0.00063089 | AD6: 0.224981095 | AE6: =AG6+AH6 -> 1.133470314 | AF6: =AE6/AA6 -> 0.8339968189 | AG6: 0.236225167 | AH6: 0.897245147
A7: Nízke Tatry | B7: 76759.21208 | C7: 0.1532377127 | D7: 11762.40609 | E7: =F7+G7 -> 3273.424618 | F7: 2297.361335 | G7: 976.0632825 | H7: =I7+J7 -> 8488.981468 | I7: 7548.351988 | J7: 940.6294798 | K7: 464.1422986 | L7: 104.4612121 | M7: 84.59145896 | N7: 19.86975319 | O7: 359.6810865 | P7: 0.7749370991 | Q7: 299.7962635 | R7: 59.88482292 | S7: 64532.25514 | T7: =U7+V7 -> 43174.02401 | U7: 39055.5124 | V7: 4118.511607 | W7: 21358.23113 | X7: =W7/S7 -> 0.3309698551 | Y7: 17248.93386 | Z7: 4109.297265 | AA7: 0.408562695 | AB7: =AC7+AD7 -> 0.3707274857 | AC7: 0.1682205948 | AD7: 0.2025068909 | AE7: 0.0378352093 | AF7: =AE7/AA7 -> 0.09260563865 | AG7: 0.0281903682 | AH7: 0.0096448411
A8: PIENAP | B8: 3712.380899 | C8: 0.07452736363 | D8: 276.6739612 | E8: 227.5541322 | F8: 227.0960261 | G8: 0.4581060667 | H8: 49.119829 | I8: 44.42588855 | J8: 4.693940451 | K8: 838.7070849 | L8: 145.1731963 | M8: 107.9300349 | N8: 37.24316141 | O8: 693.5338886 | P8: 0.8269083463 | Q8: 544.128316 | R8: 149.4055726 | S8: 1357.296904 | T8: 39.85695054 | U8: 4.698641051 | V8: 35.15830949 | W8: 1317.439954 | X8: 0.9706350538 | Y8: 435.8446107 | Z8: 881.5953431 | AA8: 1239.702948 | AB8: 16.8794661 | AC8: 0.0631241873 | AD8: 16.81634192 | AE8: 1222.823482 | AF8: 0.9863842656 | AG8: 0.2217490958 | AH8: 1222.601733
A9: TANAP | B9: 73887.83042 | C9: 0.4225954285 | D9: 31224.65936 | E9: 23119.62556 | F9: 14648.37882 | G9: 8471.246742 | H9: 8105.033798 | I9: 5929.721721 | J9: 2175.312077 | K9: 8730.919224 | L9: 4717.091866 | M9: 4473.259688 | N9: 243.8321779 | O9: 4013.827358 | P9: 0.459725632 | Q9: 3933.311255 | R9: 80.5161029 | S9: 33788.26852 | T9: 13151.95549 | U9: 11877.41011 | V9: 1274.545383 | W9: 20636.31303 | X9: 0.6107537892 | Y9: 15556.98301 | Z9: 5079.330016 | AA9: 143.9833202 | AB9: 120.4363341 | AC9: 109.4799597 | AD9: 10.95637439 | AE9: 23.54698604 | AF9: 0.1635396795 | AG9: 19.33999165 | AH9: 4.206994382
A10: Malá Fatra | B10: 21424.70841 | C10: 0.1951919214 | D10: 4181.929999 | E10: 798.57036 | F10: 769.9491437 | G10: 28.62121627 | H10: 3383.359639 | I10: 2902.27737 | J10: 481.0822697 | K10: 18.25495382 | L10: 11.54183143 | M10: 9.788727793 | N10: 1.753103641 | O10: 6.713122384 | P10: 0.3677425016 | Q10: 5.684097407 | R10: 1.029024977 | S10: 17224.52247 | T10: 2629.435457 | U10: 2507.15145 | V10: 122.2840065 | W10: 14595.08701 | X10: 0.8473434917 | Y10: 11990.85956 | Z10: 2604.227447 | AA10: 0.0009897887 | AB10: 1.822e-07 | AC10: 4.59e-08 | AD10: 1.363e-07 | AE10: 0.0009896065 | AF10: 0.9998159203 | AG10: 0 | AH10: 0.0009896065
A11: Poloniny | B11: 30755.57772 | C11: 0.0611329773 | D11: 1880.180035 | E11: 1258.961598 | F11: 1227.965917 | G11: 30.99568094 | H11: 621.2184366 | I11: 580.5253709 | J11: 40.69306574 | K11: 54.73755244 | L11: 5.198268396 | M11: 2.817543203 | N11: 2.380725192 | O11: 49.53928405 | P11: 0.9050328675 | Q11: 5.981058189 | R11: 43.55822586 | S11: 28820.65858 | T11: 13281.61726 | U11: 12353.60832 | V11: 928.0089422 | W11: 15539.04133 | X11: =W11/S11 -> 0.5391632978 | Y11: 12479.94836 | Z11: 3059.09297 | AA11: 0.0015497879 | AB11: 1e-18 | AC11: 1e-18 | AD11: 0 | AE11: 0.0015497879 | AF11: 1 | AG11: 0 | AH11: 0.0015497879
A12: Muránska planina | B12: 20199.07167 | C12: 0.1234039319 | D12: 2492.644865 | E12: 2258.707492 | F12: 2246.24321 | G12: 12.46428184 | H12: 233.9373727 | I12: 226.5232224 | J12: 7.414150337 | K12: 345.3019523 | L12: 338.2848321 | M12: 320.3638357 | N12: 17.92099631 | O12: 7.017120236 | P12: 0.02032169291 | Q12: 0.7792368572 | R12: 6.237883378 | S12: 17357.82125 | T12: 13233.05676 | U12: 12313.56169 | V12: 919.4950735 | W12: 4124.764484 | X12: 0.2376314645 | Y12: 2133.282115 | Z12: 1991.482369 | AA12: 3.303609468 | AB12: 3.269574741 | AC12: 0.0820919946 | AD12: 3.187482746 | AE12: =AG12+AH12 -> 0.034034727 | AF12: 0.01030228522 | AG12: 0 | AH12: 0.034034727
A13: Slovenský kras | B13: 34366.52674 | C13: 0.03503591379 | D13: 1204.062668 | E13: 664.5292861 | F13: 487.322869 | G13: 177.2064171 | H13: 539.5333819 | I13: 532.9116603 | J13: 6.621721602 | K13: 962.9126474 | L13: 571.027324 | M13: 529.4443169 | N13: 41.58300702 | O13: 391.8853235 | P13: 0.4069791009 | Q13: 315.2117326 | R13: 76.67359091 | S13: 32133.60859 | T13: 8017.800664 | U13: 7076.224456 | V13: 941.5762076 | W13: 24115.80792 | X13: 0.7504855192 | Y13: 17679.38211 | Z13: 6436.425813 | AA13: 65.94283618 | AB13: 0.0613020554 | AC13: 0.0063845735 | AD13: 0.0549174819 | AE13: 65.88153412 | AF13: 0.9990703758 | AG13: 47.30329875 | AH13: 18.57823537
A14: Slovenský raj | B14: 19412.088 | C14: 0.2411894856 | D14: 4681.99152 | E14: 2524.365253 | F14: 2463.07106 | G14: 61.29419337 | H14: 2157.626267 | I14: 2150.455116 | J14: 7.171151074 | K14: 514.74 | L14: 333.7702788 | M14: 332.7256482 | N14: 1.044630533 | O14: 180.971752 | P14: 0.3515789564 | Q14: 178.7920931 | R14: 2.17965894 | S14: 14135.348 | T14: 8252.094596 | U14: 7699.513914 | V14: 552.5806818 | W14: 5882.868651 | X14: 0.4161813809 | Y14: 4486.950766 | Z14: 1395.917885 | AA14: 79.679 | AB14: 8.668983117 | AC14: 0.7689009194 | AD14: 7.900082198 | AE14: 71.00289454 | AF14: 0.8911117677 | AG14: 0.0512120998 | AH14: 70.95168244
D15: =SUM(D6:D14) -> 63881.43783 | E15: =SUM(E6:E14) -> 38676.4527 | F15: =SUM(F6:F14) -> 28773.61331 | H15: =SUM(H6:H14) -> 25204.98513 | I15: =SUM(I6:I14) -> 21496.99234
A16: Budúca A Zóna
A17: NP | B17: Rozloha parku | C17: A zóna | D17: 5. stupeň | K17: 4. stupeň | S17: 3. stupeň | AA17: 2. stupeň | AI17: Dokopy
D18: Celkovo | E18: Štátne | H18: Neštátne | K18: Celkovo | L18: Štátne | O18: Neštátne | S18: Celkovo | T18: Štátne | W18: Neštátne | AA18: Celkovo | AB18: Štátne | AE18: Neštátne | AI18: Štátne | AK18: Neštátne
C19: rozloha | D19: rozloha | E19: Celkovo | F19: Lesné | G19: Nelesné | H19: Celkovo | I19: Lesné | J19: Nelesné | K19: rozloha | L19: Celkovo | M19: Lesné | N19: Nelesné | O19: Celkovo | Q19: Lesné | R19: Nelesné | S19: rozloha | T19: Celkovo | U19: Lesné | V19: Nelesné | W19: Celkovo | Y19: Lesné | Z19: Nelesné | AA19: rozloha | AB19: Celkovo | AC19: Lesné | AD19: Nelesné | AE19: Celkovo | AG19: Lesné | AH19: Nelesné | AI19: Lesné | AJ19: Nelesné | AK19: Lesné | AL19: Nelesné
A20: Veľká Fatra | B20: =B6*Kalkulačka!P25 -> 41065.24972 | C20: =B20*Kalkulačka!Q25 -> 6176.88934 | D20: 6176.88934 | E20: =F20+G20 -> 4550.714405 | F20: 4406.224931 | G20: 144.4894737 | H20: =I20+J20 -> 1626.174934 | I20: 1581.800001 | J20: 44.37493313 | K20: =IF(K6<(C20-D20),K6,(C20-D20)) -> 0 | L20: =K20-O20 -> 0 | M20: =L20*(M6/L6) -> 0 | N20: =L20*(N6/L6) -> 0 | O20: =IF(K20*(1-Kalkulačka!$R25)<O6,IF(K20*Kalkulačka!$R25>L6,K20-L6,K20*(1-Kalkulačka!$R25)),O6) -> 0 | Q20: =O20*(Q6/O6) -> 0 | R20: =O20*(R6/O6) -> 0 | S20: =IF(S6<(C20-D20-K20),S6,(C20-D20-K20)) -> 0 | T20: =S20-W20 -> 0 | U20: =T20*(U6/T6) -> 0 | V20: =T20*(V6/T6) -> 0 | W20: =IF(S20*(1-Kalkulačka!$R25)<W6,IF(S20*Kalkulačka!$R25>T6,S20-T6,S20*(1-Kalkulačka!$R25)),W6) -> 0 | Y20: =W20*(Y6/W6) -> 0 | Z20: =W20*(Z6/W6) -> 0 | AA20: =IF(AA6<(C20-D20-K20-S20),AA6,(C20-D20-K20-S20)) -> 0 | AB20: =AA20-AE20 -> 0 | AC20: =AB20*(AC6/AB6) -> 0 | AD20: =AB20*(AD6/AB6) -> 0 | AE20: =IF(AA20*(1-Kalkulačka!$R25)<AE6,IF(AA20*Kalkulačka!$R25>AB6,AA20-AB6,AA20*(1-Kalkulačka!$R25)),AE6) -> 0 | AG20: =AE20*(AG6/AE6) -> 0 | AH20: =AE20*(AH6/AE6) -> 0 | AI20: =F20+M20+U20+AC20 -> 4406.224931 | AJ20: =G20+N20+V20+AD20 -> 144.4894737 | AK20: =I20+Q20+Y20+AG20 -> 1581.800001 | AL20: =J20+R20+Z20+AH20 -> 44.37493313
A21: Nízke Tatry | B21: =B7*Kalkulačka!P26 -> 76759.21208 | C21: =B21*Kalkulačka!Q26 -> 11762.40609 | D21: 11762.40609 | E21: =F21+G21 -> 3273.424618 | F21: 2297.361335 | G21: 976.0632825 | H21: =I21+J21 -> 8488.981468 | I21: 7548.351988 | J21: 940.6294798 | K21: =IF(K7<(C21-D21),K7,(C21-D21)) -> 0 | L21: =K21-O21 -> 0 | M21: =L21*(M7/L7) -> 0 | N21: =L21*(N7/L7) -> 0 | O21: =IF(K21*(1-Kalkulačka!$R26)<O7,IF(K21*Kalkulačka!$R26>L7,K21-L7,K21*(1-Kalkulačka!$R26)),O7) -> 0 | Q21: =O21*(Q7/O7) -> 0 | R21: 0 | S21: =IF(S7<(C21-D21-K21),S7,(C21-D21-K21)) -> 0 | T21: =S21-W21 -> 0 | U21: =T21*(U7/T7) -> 0 | V21: =T21*(V7/T7) -> 0 | W21: =IF(S21*(1-Kalkulačka!$R26)<W7,IF(S21*Kalkulačka!$R26>T7,S21-T7,S21*(1-Kalkulačka!$R26)),W7) -> 0 | Y21: =W21*(Y7/W7) -> 0 | Z21: =W21*(Z7/W7) -> 0 | AA21: =IF(AA7<(C21-D21-K21-S21),AA7,(C21-D21-K21-S21)) -> 0 | AB21: 0 | AC21: =AB21*(AC7/AB7) -> 0 | AD21: =AB21*(AD7/AB7) -> 0 | AE21: =IF(AA21*(1-Kalkulačka!$R26)<AE7,IF(AA21*Kalkulačka!$R26>AB7,AA21-AB7,AA21*(1-Kalkulačka!$R26)),AE7) -> 0 | AG21: =AE21*(AG7/AE7) -> 0 | AH21: =AE21*(AH7/AE7) -> 0 | AI21: =F21+M21+U21+AC21 -> 2297.361335 | AJ21: =G21+N21+V21+AD21 -> 976.0632825 | AK21: =I21+Q21+Y21+AG21 -> 7548.351988 | AL21: =J21+R21+Z21+AH21 -> 940.6294798
A22: PIENAP | B22: =B8*Kalkulačka!P27 -> 3712.380899 | C22: =B22*Kalkulačka!Q27 -> 276.6739612 | D22: 276.6739612 | E22: 227.5541322 | F22: 227.0960261 | G22: 0.4581060667 | H22: 49.119829 | I22: 44.42588855 | J22: 4.693940451 | K22: 5.684341886e-14 | L22: 2.842170943e-14 | M22: 2.113031998e-14 | N22: 7.291389448e-15 | O22: =IF(K22*(1-Kalkulačka!$R27)<O8,IF(K22*Kalkulačka!$R27>L8,K22-L8,K22*(1-Kalkulačka!$R27)),O8) -> 2.842170943e-14 | Q22: 2.229892028e-14 | R22: 6.122789155e-15 | S22: 0 | T22: =S22-W22 -> 0 | U22: 0 | V22: 0 | W22: =IF(S22*(1-Kalkulačka!$R27)<W8,IF(S22*Kalkulačka!$R27>T8,S22-T8,S22*(1-Kalkulačka!$R27)),W8) -> 0 | Y22: 0 | Z22: 0 | AA22: 0 | AB22: =AA22-AE22 -> 0 | AC22: 0 | AD22: 0 | AE22: =IF(AA22*(1-Kalkulačka!$R27)<AE8,IF(AA22*Kalkulačka!$R27>AB8,AA22-AB8,AA22*(1-Kalkulačka!$R27)),AE8) -> 0 | AG22: 0 | AH22: 0 | AI22: 227.0960261 | AJ22: 0.4581060667 | AK22: 44.42588855 | AL22: 4.693940451
A23: TANAP | B23: =B9*Kalkulačka!P28 -> 73887.83042 | C23: =B23*Kalkulačka!Q28 -> 31224.65936 | D23: 31224.65936 | E23: 23119.62556 | F23: 14648.37882 | G23: 8471.246742 | H23: 8105.033798 | I23: 5929.721721 | J23: 2175.312077 | K23: =IF(K9<(C23-D23),K9,(C23-D23)) -> -3.637978807e-12 | L23: =K23-O23 -> -1.818989404e-12 | M23: -1.724963644e-12 | N23: -9.402576003e-14 | O23: =IF(K23*(1-Kalkulačka!$R28)<O9,IF(K23*Kalkulačka!$R28>L9,K23-L9,K23*(1-Kalkulačka!$R28)),O9) -> -1.818989404e-12 | Q23: -1.782501053e-12 | R23: -3.648835013e-14 | S23: 0 | T23: =S23-W23 -> 0 | U23: 0 | V23: 0 | W23: =IF(S23*(1-Kalkulačka!$R28)<W9,IF(S23*Kalkulačka!$R28>T9,S23-T9,S23*(1-Kalkulačka!$R28)),W9) -> 0 | Y23: 0 | Z23: 0 | AA23: 0 | AB23: =AA23-AE23 -> 0 | AC23: 0 | AD23: 0 | AE23: =IF(AA23*(1-Kalkulačka!$R28)<AE9,IF(AA23*Kalkulačka!$R28>AB9,AA23-AB9,AA23*(1-Kalkulačka!$R28)),AE9) -> 0 | AG23: 0 | AH23: 0 | AI23: 14648.37882 | AJ23: 8471.246742 | AK23: 5929.721721 | AL23: 2175.312077
A24: Malá Fatra | B24: =B10*Kalkulačka!P29 -> 21424.70841 | C24: =B24*Kalkulačka!Q29 -> 4181.929999 | D24: 4181.929999 | E24: 798.57036 | F24: 769.9491437 | G24: 28.62121627 | H24: 3383.359639 | I24: 2902.27737 | J24: 481.0822697 | K24: 0 | L24: =K24-O24 -> 0 | M24: 0 | N24: 0 | O24: =IF(K24*(1-Kalkulačka!$R29)<O10,IF(K24*Kalkulačka!$R29>L10,K24-L10,K24*(1-Kalkulačka!$R29)),O10) -> 0 | Q24: 0 | R24: 0 | S24: 0 | T24: =S24-W24 -> 0 | U24: 0 | V24: 0 | W24: =IF(S24*(1-Kalkulačka!$R29)<W10,IF(S24*Kalkulačka!$R29>T10,S24-T10,S24*(1-Kalkulačka!$R29)),W10) -> 0 | Y24: 0 | Z24: 0 | AA24: 0 | AB24: 0 | AC24: 0 | AD24: 0 | AE24: =IF(AA24*(1-Kalkulačka!$R29)<AE10,IF(AA24*Kalkulačka!$R29>AB10,AA24-AB10,AA24*(1-Kalkulačka!$R29)),AE10) -> 0 | AG24: 0 | AH24: 0 | AI24: 769.9491437 | AJ24: 28.62121627 | AK24: 2902.27737 | AL24: 481.0822697
A25: Poloniny | B25: =B11*Kalkulačka!P30 -> 30755.57772 | C25: =B25*Kalkulačka!Q30 -> 1880.180035 | D25: 1880.180035 | E25: 1258.961598 | F25: 1227.965917 | G25: 30.99568094 | H25: 621.2184366 | I25: 580.5253709 | J25: 40.69306574 | K25: 0 | L25: 0 | M25: 0 | N25: 0 | O25: =IF(K25*(1-Kalkulačka!$R30)<O11,IF(K25*Kalkulačka!$R30>L11,K25-L11,K25*(1-Kalkulačka!$R30)),O11) -> 0 | Q25: 0 | R25: 0 | S25: 0 | T25: 0 | U25: 0 | V25: 0 | W25: =IF(S25*(1-Kalkulačka!$R30)<W11,IF(S25*Kalkulačka!$R30>T11,S25-T11,S25*(1-Kalkulačka!$R30)),W11) -> 0 | Y25: 0 | Z25: 0 | AA25: 0 | AB25: 0 | AC25: 0 | AD25: =AB25*(AD11/AB11) -> 0 | AE25: =IF(AA25*(1-Kalkulačka!$R30)<AE11,IF(AA25*Kalkulačka!$R30>AB11,AA25-AB11,AA25*(1-Kalkulačka!$R30)),AE11) -> 0 | AG25: 0 | AH25: 0 | AI25: 1227.965917 | AJ25: 30.99568094 | AK25: 580.5253709 | AL25: 40.69306574
A26: Muránska planina | B26: =B12*Kalkulačka!P31 -> 20199.07167 | C26: =B26*Kalkulačka!Q31 -> 2492.644865 | D26: 2492.644865 | E26: 2258.707492 | F26: 2246.24321 | G26: 12.46428184 | H26: 233.9373727 | I26: 226.5232224 | J26: 7.414150337 | K26: 0 | L26: 0 | M26: 0 | N26: 0 | O26: =IF(K26*(1-Kalkulačka!$R31)<O12,IF(K26*Kalkulačka!$R31>L12,K26-L12,K26*(1-Kalkulačka!$R31)),O12) -> 0 | Q26: 0 | R26: 0 | S26: 0 | T26: 0 | U26: 0 | V26: =T26*(V12/T12) -> 0 | W26: =IF(S26*(1-Kalkulačka!$R31)<W12,IF(S26*Kalkulačka!$R31>T12,S26-T12,S26*(1-Kalkulačka!$R31)),W12) -> 0 | Y26: 0 | Z26: 0 | AA26: 0 | AB26: 0 | AC26: 0 | AD26: 0 | AE26: =IF(AA26*(1-Kalkulačka!$R31)<AE12,IF(AA26*Kalkulačka!$R31>AB12,AA26-AB12,AA26*(1-Kalkulačka!$R31)),AE12) -> 0 | AG26: =AE26*(AG12/AE12) -> 0 | AH26: 0 | AI26: 2246.24321 | AJ26: =G26+N26+V26+AD26 -> 12.46428184 | AK26: =I26+Q26+Y26+AG26 -> 226.5232224 | AL26: 7.414150337
A27: Slovenský kras | B27: =B13*Kalkulačka!P32 -> 34366.52674 | C27: =B27*Kalkulačka!Q32 -> 1204.062668 | D27: 1204.062668 | E27: 664.5292861 | F27: 487.322869 | G27: 177.2064171 | H27: 539.5333819 | I27: 532.9116603 | J27: 6.621721602 | K27: 0 | L27: 0 | M27: 0 | N27: 0 | O27: =IF(K27*(1-Kalkulačka!$R32)<O13,IF(K27*Kalkulačka!$R32>L13,K27-L13,K27*(1-Kalkulačka!$R32)),O13) -> 0 | Q27: 0 | R27: 0 | S27: 0 | T27: 0 | U27: 0 | V27: 0 | W27: =IF(S27*(1-Kalkulačka!$R32)<W13,IF(S27*Kalkulačka!$R32>T13,S27-T13,S27*(1-Kalkulačka!$R32)),W13) -> 0 | Y27: 0 | Z27: 0 | AA27: 0 | AB27: 0 | AC27: 0 | AD27: 0 | AE27: =IF(AA27*(1-Kalkulačka!$R32)<AE13,IF(AA27*Kalkulačka!$R32>AB13,AA27-AB13,AA27*(1-Kalkulačka!$R32)),AE13) -> 0 | AG27: 0 | AH27: 0 | AI27: 487.322869 | AJ27: 177.2064171 | AK27: 532.9116603 | AL27: 6.621721602
A28: Slovenský raj | B28: =B14*Kalkulačka!P33 -> 19412.088 | C28: =B28*Kalkulačka!Q33 -> 4682.321 | D28: 4682.321 | E28: 2524.365253 | F28: 2463.07106 | G28: 61.29419337 | H28: 2157.626267 | I28: 2150.455116 | J28: 7.171151074 | K28: 0 | L28: 0 | M28: 0 | N28: 0 | O28: =IF(K28*(1-Kalkulačka!$R33)<O14,IF(K28*Kalkulačka!$R33>L14,K28-L14,K28*(1-Kalkulačka!$R33)),O14) -> 0 | Q28: 0 | R28: 0 | S28: 0 | T28: 0 | U28: 0 | V28: 0 | W28: =IF(S28*(1-Kalkulačka!$R33)<W14,IF(S28*Kalkulačka!$R33>T14,S28-T14,S28*(1-Kalkulačka!$R33)),W14) -> 0 | Y28: 0 | Z28: 0 | AA28: 0 | AB28: 0 | AC28: 0 | AD28: 0 | AE28: =IF(AA28*(1-Kalkulačka!$R33)<AE14,IF(AA28*Kalkulačka!$R33>AB14,AA28-AB14,AA28*(1-Kalkulačka!$R33)),AE14) -> 0 | AG28: 0 | AH28: 0 | AI28: 2463.07106 | AJ28: 61.29419337 | AK28: 2150.455116 | AL28: 7.171151074
A30: Zbytok z národných parkov bez A zóny
A31: NP | B31: Rozloha parku | C31: Ochranné pásmo | D31: 5. stupeň | K31: 4. stupeň | S31: 3. stupeň | AA31: 2. stupeň | AI31: Dokopy
D32: Celkovo | E32: Štátne | H32: Neštátne | K32: Celkovo | L32: Štátne | O32: Neštátne | S32: Celkovo | T32: Štátne | W32: Neštátne | AA32: Celkovo | AB32: Štátne | AE32: Neštátne | AI32: Štátne | AK32: Neštátne
C33: rozloha | D33: rozloha | E33: Celkovo | F33: Lesné | G33: Nelesné | H33: Celkovo | I33: Lesné | J33: Nelesné | K33: rozloha | L33: Celkovo | M33: Lesné | N33: Nelesné | O33: Celkovo | Q33: Lesné | R33: Nelesné | S33: rozloha | T33: Celkovo | U33: Lesné | V33: Nelesné | W33: Celkovo | Y33: Lesné | Z33: Nelesné | AA33: rozloha | AB33: Celkovo | AC33: Lesné | AD33: Nelesné | AE33: Celkovo | AG33: Lesné | AH33: Nelesné | AI33: Lesné | AJ33: Nelesné | AK33: Lesné | AL33: Nelesné
A34: Veľká Fatra | B34: 41065.24972 | C34: =B34-C20 -> 34888.36038 | D34: =D6-D20 -> 0 | E34: =E6-E20 -> 0 | F34: 0 | G34: 0 | H34: =H6-H20 -> 0 | I34: 0 | J34: 0 | K34: =IF(K6-K20>C34,C34,K6-K20) -> 192.8335472 | L34: =K34-O34 -> 58.43737007 | M34: =L34*M6/L6 -> 32.70044098 | N34: =L34*N6/L6 -> 25.73692909 | O34: =O6-O20 -> 134.3961771 | P34: =IF(K34=0,0,O34/K34) -> 0.6969543374 | Q34: =O34*Q6/O6 -> 125.2516428 | R34: =O34*R6/O6 -> 9.144534289 | S34: =IF(S6-S20>C34-K34,C34-K34,S6-S20) -> 34694.16775 | T34: =S34-W34 -> 21044.06183 | U34: =T34*U6/T6 -> 18588.86908 | V34: =T34*V6/T6 -> 2455.192751 | W34: =W6-W20 -> 13650.10592 | X34: =IF(S34=0,0,W34/S34) -> 0.3934409384 | Y34: =W34*Y6/W6 -> 10571.14479 | Z34: =W34*Z6/W6 -> 3078.96113 | AA34: =IF(AA6-AA20>C34-K34-S34,C34-K34-S34,AA6-AA20) -> 1.359082299 | AB34: =AA34-AE34 -> 0.225611985 | AC34: =AA34*AC6/AB6 -> 0.003800469339 | AD34: =AB34*AD6/AB6 -> 0.224981095 | AE34: =AE6-AE20 -> 1.133470314 | AF34: =IF(AA34=0,0,AE34/AA34) -> 0.8339968189 | AG34: =AE34*AG6/AE6 -> 0.236225167 | AH34: =AE34*AH6/AE6 -> 0.897245147 | AI34: =F34+M34+U34+AC34 -> 18621.57332 | AJ34: =G34+N34+V34+AD34 -> 2481.154662 | AK34: =I34+Q34+Y34+AG34 -> 10696.63265 | AL34: =J34+R34+Z34+AH34 -> 3089.002909
A35: Nízke Tatry | B35: 76759.21208 | C35: =B35-C21 -> 64996.806 | D35: =D7-D21 -> 0 | E35: 0 | F35: 0 | G35: 0 | H35: 0 | I35: 0 | J35: 0 | K35: =IF(K7-K21>C35,C35,K7-K21) -> 464.1422986 | L35: =K35-O35 -> 104.4612121 | M35: =L35*M7/L7 -> 84.59145896 | N35: =L35*N7/L7 -> 19.86975319 | O35: =O7-O21 -> 359.6810865 | P35: =IF(K35=0,0,O35/K35) -> 0.7749370991 | Q35: =O35*Q7/O7 -> 299.7962635 | R35: =O35*R7/O7 -> 59.88482292 | S35: =IF(S7-S21>C35-K35,C35-K35,S7-S21) -> 64532.25514 | T35: =S35-W35 -> 43174.02401 | U35: =T35*U7/T7 -> 39055.5124 | V35: =T35*V7/T7 -> 4118.511607 | W35: =W7-W21 -> 21358.23113 | X35: =IF(S35=0,0,W35/S35) -> 0.3309698551 | Y35: =W35*Y7/W7 -> 17248.93386 | Z35: =W35*Z7/W7 -> 4109.297265 | AA35: =IF(AA7-AA21>C35-K35-S35,C35-K35-S35,AA7-AA21) -> 0.408562695 | AB35: =AA35-AE35 -> 0.3707274857 | AC35: =AA35*AC7/AB7 -> 0.185388627 | AD35: =AB35*AD7/AB7 -> 0.2025068909 | AE35: =AE7-AE21 -> 0.0378352093 | AF35: =IF(AA35=0,0,AE35/AA35) -> 0.09260563865 | AG35: =AE35*AG7/AE7 -> 0.0281903682 | AH35: =AE35*AH7/AE7 -> 0.0096448411 | AI35: =F35+M35+U35+AC35 -> 39140.28925 | AJ35: =G35+N35+V35+AD35 -> 4138.583867 | AK35: =I35+Q35+Y35+AG35 -> 17548.75832 | AL35: =J35+R35+Z35+AH35 -> 4169.191733
A36: PIENAP | B36: 3712.380899 | C36: 3435.706937 | D36: 0 | E36: 0 | F36: 0 | G36: 0 | H36: 0 | I36: 0 | J36: 0 | K36: 838.7070849 | L36: 145.1731963 | M36: 107.9300349 | N36: 37.24316141 | O36: 693.5338886 | P36: 0.8269083463 | Q36: 544.128316 | R36: 149.4055726 | S36: =IF(S8-S22>C36-K36,C36-K36,S8-S22) -> 1357.296904 | T36: 39.85695054 | U36: 4.698641051 | V36: 35.15830949 | W36: 1317.439954 | X36: 0.9706350538 | Y36: 435.8446107 | Z36: 881.5953431 | AA36: 1239.702948 | AB36: 16.8794661 | AC36: 4.636120635 | AD36: 16.81634192 | AE36: 1222.823482 | AF36: 0.9863842656 | AG36: 0.2217490958 | AH36: 1222.601733 | AI36: 117.2647966 | AJ36: 89.21781281 | AK36: 980.1946758 | AL36: 2253.602649
A37: TANAP | B37: 73887.83042 | C37: 42663.17106 | D37: 0 | E37: 0 | F37: 0 | G37: 0 | H37: 0 | I37: 0 | J37: 0 | K37: 8730.919224 | L37: 4717.091866 | M37: 4473.259688 | N37: 243.8321779 | O37: 4013.827358 | P37: 0.459725632 | Q37: 3933.311255 | R37: 80.5161029 | S37: =IF(S9-S23>C37-K37,C37-K37,S9-S23) -> 33788.26852 | T37: 13151.95549 | U37: 11877.41011 | V37: 1274.545383 | W37: 20636.31303 | X37: 0.6107537892 | Y37: 15556.98301 | Z37: 5079.330016 | AA37: 143.9833202 | AB37: 120.4363341 | AC37: 130.8848215 | AD37: 10.95637439 | AE37: 23.54698604 | AF37: 0.1635396795 | AG37: 19.33999165 | AH37: 4.206994382 | AI37: 16481.55462 | AJ37: 1529.333935 | AK37: 19509.63426 | AL37: 5164.053113
A38: Malá Fatra | B38: 21424.70841 | C38: 17242.77841 | D38: 0 | E38: 0 | F38: 0 | G38: 0 | H38: 0 | I38: 0 | J38: 0 | K38: 18.25495382 | L38: 11.54183143 | M38: 9.788727793 | N38: 1.753103641 | O38: 6.713122384 | P38: 0.3677425016 | Q38: 5.684097407 | R38: 1.029024977 | S38: 17224.52247 | T38: =S38-W38 -> 2629.435457 | U38: 2507.15145 | V38: 122.2840065 | W38: 14595.08701 | X38: 0.8473434917 | Y38: 11990.85956 | Z38: 2604.227447 | AA38: 0.0009897887 | AB38: 1.822e-07 | AC38: 0.0002493485254 | AD38: 1.363e-07 | AE38: 0.0009896065 | AF38: 0.9998159203 | AG38: 0 | AH38: 0.0009896065 | AI38: 2516.940427 | AJ38: 124.0371103 | AK38: 11996.54366 | AL38: 2605.257461
A39: Poloniny | B39: 30755.57772 | C39: 28875.39769 | D39: 0 | E39: 0 | F39: 0 | G39: 0 | H39: 0 | I39: 0 | J39: 0 | K39: 54.73755244 | L39: 5.198268396 | M39: 2.817543203 | N39: 2.380725192 | O39: 49.53928405 | P39: 0.9050328675 | Q39: 5.981058189 | R39: 43.55822586 | S39: 28820.65858 | T39: 13281.61726 | U39: 12353.60832 | V39: 928.0089422 | W39: 15539.04133 | X39: 0.5391632978 | Y39: 12479.94836 | Z39: 3059.09297 | AA39: 0.0015497879 | AB39: 0 | AC39: 0.0015497879 | AD39: 0 | AE39: 0.0015497879 | AF39: 1 | AG39: 0 | AH39: 0.0015497879 | AI39: 12356.42741 | AJ39: 930.3896674 | AK39: 12485.92941 | AL39: 3102.652745
A40: Muránska planina | B40: 20199.07167 | C40: 17706.42681 | D40: 0 | E40: 0 | F40: 0 | G40: 0 | H40: 0 | I40: 0 | J40: 0 | K40: 345.3019523 | L40: 338.2848321 | M40: 320.3638357 | N40: 17.92099631 | O40: 7.017120236 | P40: 0.02032169291 | Q40: 0.7792368572 | R40: 6.237883378 | S40: 17357.82125 | T40: 13233.05676 | U40: 12313.56169 | V40: 919.4950735 | W40: 4124.764484 | X40: 0.2376314645 | Y40: 2133.282115 | Z40: 1991.482369 | AA40: 3.303609468 | AB40: 3.269574741 | AC40: 0.08294653345 | AD40: 3.187482746 | AE40: 0.034034727 | AF40: 0.01030228522 | AG40: 0 | AH40: 0.034034727 | AI40: 12634.00847 | AJ40: 940.6035525 | AK40: =I40+Q40+Y40+AG40 -> 2134.061352 | AL40: =J40+R40+Z40+AH40 -> 1997.754287
A41: Slovenský kras | B41: 34366.52674 | C41: 33162.46407 | D41: 0 | E41: 0 | F41: 0 | G41: 0 | H41: 0 | I41: 0 | J41: 0 | K41: 962.9126474 | L41: 571.027324 | M41: 529.4443169 | N41: 41.58300702 | O41: 391.8853235 | P41: 0.4069791009 | Q41: 315.2117326 | R41: 76.67359091 | S41: 32133.60859 | T41: 8017.800664 | U41: 7076.224456 | V41: 941.5762076 | W41: 24115.80792 | X41: 0.7504855192 | Y41: 17679.38211 | Z41: 6436.425813 | AA41: 65.94283618 | AB41: 0.06130205538 | AC41: 6.867908125 | AD41: 0.05491748189 | AE41: 65.88153412 | AF41: 0.9990703758 | AG41: 47.30329875 | AH41: 18.57823537 | AI41: 7612.536681 | AJ41: 983.2141321 | AK41: 18041.89714 | AL41: 6531.677639
A42: Slovenský raj | B42: 19412.088 | C42: 14729.767 | D42: -0.3294801869 | E42: 0 | F42: 0 | G42: 0 | H42: 0 | I42: 0 | J42: 0 | K42: 514.74 | L42: 333.768248 | M42: 332.7236238 | N42: 1.044624177 | O42: 180.971752 | P42: 0.3515789564 | Q42: 178.7920931 | R42: 2.17965894 | S42: 14135.348 | T42: 8252.479349 | U42: 7699.872904 | V42: 552.6064459 | W42: 5882.868651 | X42: 0.4161813809 | Y42: 4486.950766 | Z42: 1395.917885 | AA42: 79.679 | AB42: 8.676105463 | AC42: 7.067179106 | AD42: 7.906572823 | AE42: 71.00289454 | AF42: 0.8911117677 | AG42: 0.0512120998 | AH42: 70.95168244 | AI42: 8039.663706 | AJ42: 561.5576429 | AK42: 4665.794071 | AL42: 1469.049226
A44: Budúce ochranné pásmo
A45: NP | B45: Rozloha parku | C45: Ochranné pásmo | D45: 5. stupeň | K45: 4. stupeň | S45: 3. stupeň | AA45: 2. stupeň | AI45: Dokopy
D46: Celkovo | E46: Štátne | H46: Neštátne | K46: Celkovo | L46: Štátne | O46: Neštátne | S46: Celkovo | T46: Štátne | W46: Neštátne | AA46: Celkovo | AB46: Štátne | AE46: Neštátne | AI46: Štátne | AK46: Neštátne
C47: rozloha | D47: rozloha | E47: Celkovo | F47: Lesné | G47: Nelesné | H47: Celkovo | I47: Lesné | J47: Nelesné | K47: rozloha | L47: Celkovo | M47: Lesné | N47: Nelesné | O47: Celkovo | Q47: Lesné | R47: Nelesné | S47: rozloha | T47: Celkovo | U47: Lesné | V47: Nelesné | W47: Celkovo | Y47: Lesné | Z47: Nelesné | AA47: rozloha | AB47: Celkovo | AC47: Lesné | AD47: Nelesné | AE47: Celkovo | AG47: Lesné | AH47: Nelesné | AI47: Lesné | AJ47: Nelesné | AK47: Lesné | AL47: Nelesné
A48: Veľká Fatra | B48: =B20 -> 41065.24972 | C48: =C20*(VLOOKUP(Formy!$B$19,Formy!$D$20:$F$23,2,FALSE)*POWER(C20,VLOOKUP(Formy!$B$19,Formy!D20:F23,3,FALSE))) -> 4803.332167 | D48: =D6-D20 -> 0 | E48: =E6-E20 -> 0 | F48: =F6-F20 -> 0 | G48: 0 | H48: =H6-H20 -> 0 | I48: 0 | J48: 0 | K48: =IF(K6-K20>C48,C48,K6-K20) -> 192.8335472 | L48: =K48-O48 -> 58.43737007 | M48: =L48*M6/L6 -> 32.70044098 | N48: =L48*N6/L6 -> 25.73692909 | O48: =IF(K48*P34<(O6-O20),IF(K48*(1-P34)>(L6-L20),O6-O20,K48*P34),O6-O20) -> 134.3961771 | Q48: =O48*Q6/O6 -> 125.2516428 | R48: =O48*R6/O6 -> 9.144534289 | S48: =IF(S6-S20>C48-K48,C48-K48,S6-S20) -> 4610.49862 | T48: =S48-W48 -> 2796.539717 | U48: =T48*U6/T6 -> 2470.269812 | V48: =T48*V6/T6 -> 326.2699044 | W48: =IF(S48*X34<W34,IF(S48*(1-X34)>T34,S48-T34,S48*X34),W34) -> 1813.958904 | Y48: =W48*Y6/W6 -> 1404.796587 | Z48: =W48*Z6/W6 -> 409.1623164 | AA48: =IF(AA6-AA20>C48-K48-S48,C48-K48-S48,AA6-AA20) -> 0 | AB48: =AA48-AE48 -> 0 | AC48: =AA48*AC6/AB6 -> 0 | AD48: =AB48*AD6/AB6 -> 0 | AE48: =IF(AA48*AF34<(AE6-AE20),IF(AA48*(1-AF34)>(AB6-AB20),AE6-AE20,AA48*AF34),AE6-AE20) -> 0 | AG48: =AE48*AG6/AE6 -> 0 | AH48: =AE48*AH6/AE6 -> 0 | AI48: =F48+M48+U48+AC48 -> 2502.970253 | AJ48: =G48+N48+V48+AD48 -> 352.0068334 | AK48: =I48+Q48+Y48+AG48 -> 1530.04823 | AL48: =J48+R48+Z48+AH48 -> 418.3068506
A49: Nízke Tatry | B49: =B21 -> 76759.21208 | C49: =C21*(VLOOKUP(Formy!$B$19,Formy!$D$20:$F$23,2,FALSE)*POWER(C21,VLOOKUP(Formy!$B$19,Formy!$D$20:$F$23,3,FALSE))) -> 6727.279947 | D49: =D7-D21 -> 0 | E49: 0 | F49: 0 | G49: 0 | H49: 0 | I49: 0 | J49: 0 | K49: =IF(K7-K21>C49,C49,K7-K21) -> 464.1422986 | L49: =K49-O49 -> 104.4612121 | M49: =L49*M7/L7 -> 84.59145896 | N49: =L49*N7/L7 -> 19.86975319 | O49: =IF(K49*P35<(O7-O21),IF(K49*(1-P35)>(L7-L21),O7-O21,K49*P35),O7-O21) -> 359.6810865 | Q49: =O49*Q7/O7 -> 299.7962635 | R49: =O49*R7/O7 -> 59.88482292 | S49: =IF(S7-S21>C49-K49,C49-K49,S7-S21) -> 6263.137649 | T49: =S49-W49 -> 4190.227889 | U49: =T49*U7/T7 -> 3790.508322 | V49: =T49*V7/T7 -> 399.7195674 | W49: =IF(S49*X35<W35,IF(S49*(1-X35)>T35,S49-T35,S49*X35),W35) -> 2072.90976 | Y49: =W49*Y7/W7 -> 1674.084485 | Z49: =W49*Z7/W7 -> 398.8252751 | AA49: =IF(AA7-AA21>C49-K49-S49,C49-K49-S49,AA7-AA21) -> 0 | AB49: =AA49-AE49 -> 0 | AC49: =AA49*AC7/AB7 -> 0 | AD49: =AB49*AD7/AB7 -> 0 | AE49: =IF(AA49*AF35<(AE7-AE21),IF(AA49*(1-AF35)>(AB7-AB21),AE7-AE21,AA49*AF35),AE7-AE21) -> 0 | AG49: =AE49*AG7/AE7 -> 0 | AH49: =AE49*AH7/AE7 -> 0 | AI49: =F49+M49+U49+AC49 -> 3875.099781 | AJ49: =G49+N49+V49+AD49 -> 419.5893206 | AK49: =I49+Q49+Y49+AG49 -> 1973.880748 | AL49: =J49+R49+Z49+AH49 -> 458.710098
A50: PIENAP | B50: 3712.380899 | C50: =C22*(VLOOKUP(Formy!$B$19,Formy!$D$20:$F$23,2,FALSE)*POWER(C22,VLOOKUP(Formy!$B$19,Formy!$D$20:$F$23,3,FALSE))) -> 946.4973862 | D50: 0 | E50: 0 | F50: 0 | G50: 0 | H50: 0 | I50: 0 | J50: 0 | K50: 838.7070849 | L50: 145.1731963 | M50: 107.9300349 | N50: 37.24316141 | O50: 693.5338886 | Q50: 544.128316 | R50: 149.4055726 | S50: =IF(S8-S22>C50-K50,C50-K50,S8-S22) -> 107.7903012 | T50: 3.165256395 | U50: 0.373144544 | V50: 2.792111851 | W50: =IF(S50*X36<W36,IF(S50*(1-X36)>T36,S50-T36,S50*X36),W36) -> 104.6250449 | Y50: 34.61278202 | Z50: 70.01226283 | AA50: 0 | AB50: 0 | AC50: 0 | AD50: 0 | AE50: 0 | AG50: 0 | AH50: 0 | AI50: 108.3031794 | AJ50: 40.03527326 | AK50: 578.741098 | AL50: 219.4178354
A51: TANAP | B51: 73887.83042 | C51: =C23*(VLOOKUP(Formy!$B$19,Formy!$D$20:$F$23,2,FALSE)*POWER(C23,VLOOKUP(Formy!$B$19,Formy!$D$20:$F$23,3,FALSE))) -> 11209.65654 | D51: 0 | E51: 0 | F51: 0 | G51: 0 | H51: 0 | I51: 0 | J51: 0 | K51: 8730.919224 | L51: =K51-O51 -> 4717.091866 | M51: 4473.259688 | N51: 243.8321779 | O51: 4013.827358 | Q51: 3933.311255 | R51: 80.5161029 | S51: 2478.737318 | T51: 964.8391084 | U51: 871.3373298 | V51: 93.50177863 | W51: 1513.898209 | Y51: 1141.274058 | Z51: 372.6241506 | AA51: 0 | AB51: 0 | AC51: 0 | AD51: 0 | AE51: 0 | AG51: 0 | AH51: 0 | AI51: 5344.597018 | AJ51: 337.3339565 | AK51: 5074.585314 | AL51: 453.1402535
A52: Malá Fatra | B52: 21424.70841 | C52: =C24*(VLOOKUP(Formy!$B$19,Formy!$D$20:$F$23,2,FALSE)*POWER(C24,VLOOKUP(Formy!$B$19,Formy!$D$20:$F$23,3,FALSE))) -> 3916.968232 | D52: 0 | E52: 0 | F52: 0 | G52: 0 | H52: 0 | I52: 0 | J52: 0 | K52: 18.25495382 | L52: 11.54183143 | M52: 9.788727793 | N52: 1.753103641 | O52: 6.713122384 | Q52: 5.684097407 | R52: 1.029024977 | S52: =IF(S10-S24>C52-K52,C52-K52,S10-S24) -> 3898.713278 | T52: 595.1639558 | U52: 567.4853783 | V52: 27.6785775 | W52: =IF(S52*X38<W38,IF(S52*(1-X38)>T38,S52-T38,S52*X38),W38) -> 3303.549322 | Y52: 2714.091116 | Z52: 589.4582067 | AA52: 0 | AB52: 0 | AC52: 0 | AD52: 0 | AE52: 0 | AG52: 0 | AH52: 0 | AI52: 577.2741061 | AJ52: 29.43168114 | AK52: 2719.775213 | AL52: 590.4872317
A53: Poloniny | B53: 30755.57772 | C53: =C25*(VLOOKUP(Formy!$B$19,Formy!$D$20:$F$23,2,FALSE)*POWER(C25,VLOOKUP(Formy!$B$19,Formy!$D$20:$F$23,3,FALSE))) -> 2578.554468 | D53: 0 | E53: 0 | F53: 0 | G53: 0 | H53: 0 | I53: 0 | J53: 0 | K53: 54.73755244 | L53: 5.198268396 | M53: 2.817543203 | N53: 2.380725192 | O53: 49.53928405 | Q53: 5.981058189 | R53: 43.55822586 | S53: 2523.816916 | T53: 1163.067465 | U53: 1081.801984 | V53: 81.26548044 | W53: 1360.749451 | Y53: 1092.865546 | Z53: 267.8839056 | AA53: 0 | AB53: 0 | AC53: 0 | AD53: 0 | AE53: 0 | AG53: 0 | AH53: 0 | AI53: 1084.619527 | AJ53: 83.64620563 | AK53: 1098.846604 | AL53: 311.4421315
A54: Muránska planina | B54: 20199.07167 | C54: =C26*(VLOOKUP(Formy!$B$19,Formy!$D$20:$F$23,2,FALSE)*POWER(C26,VLOOKUP(Formy!$B$19,Formy!$D$20:$F$23,3,FALSE))) -> 2988.294514 | D54: 0 | E54: 0 | F54: 0 | G54: 0 | H54: 0 | I54: 0 | J54: 0 | K54: 345.3019523 | L54: 338.2848321 | M54: 320.3638357 | N54: 17.92099631 | O54: 7.017120236 | Q54: 0.7792368572 | R54: 6.237883378 | S54: 2642.992561 | T54: 2014.934368 | U54: 1874.927244 | V54: 140.0071245 | W54: 628.0581931 | Y54: 324.8246817 | Z54: 303.2335114 | AA54: 0 | AB54: 0 | AC54: 0 | AD54: 0 | AE54: 0 | AG54: 0 | AH54: 0 | AI54: 2195.29108 | AJ54: 157.9281208 | AK54: =I54+Q54+Y54+AG54 -> 325.6039185 | AL54: =J54+R54+Z54+AH54 -> 309.4713948
A55: Slovenský kras | B55: 34366.52674 | C55: =C27*(VLOOKUP(Formy!$B$19,Formy!$D$20:$F$23,2,FALSE)*POWER(C27,VLOOKUP(Formy!$B$19,Formy!$D$20:$F$23,3,FALSE))) -> 2042.440808 | D55: 0 | E55: 0 | F55: 0 | G55: 0 | H55: 0 | I55: 0 | J55: 0 | K55: 962.9126474 | L55: 571.027324 | M55: 529.4443169 | N55: 41.58300702 | O55: 391.8853235 | Q55: 315.2117326 | R55: 76.67359091 | S55: 1079.52816 | T55: 269.3579085 | U55: 237.7256681 | V55: 31.63224039 | W55: 810.170252 | Y55: 593.9386109 | Z55: 216.231641 | AA55: 0 | AB55: 0 | AC55: 0 | AD55: 0 | AE55: 0 | AG55: 0 | AH55: 0 | AI55: 767.1699851 | AJ55: 73.21524741 | AK55: =I55+Q55+Y55+AG55 -> 909.1503435 | AL55: =J55+R55+Z55+AH55 -> 292.905232
A56: Slovenský raj | B56: 19412.088 | C56: =C28*(VLOOKUP(Formy!$B$19,Formy!$D$20:$F$23,2,FALSE)*POWER(C28,VLOOKUP(Formy!$B$19,Formy!$D$20:$F$23,3,FALSE))) -> 4155.480067 | D56: -0.3294801869 | E56: 0 | F56: 0 | G56: 0 | H56: 0 | I56: 0 | J56: 0 | K56: 514.74 | L56: 333.768248 | M56: 332.7236238 | N56: 1.044624177 | O56: 180.971752 | Q56: 178.7920931 | R56: 2.17965894 | S56: 3640.740067 | T56: 2125.531838 | U56: 1983.200965 | V56: 142.3308736 | W56: 1515.208229 | Y56: 1155.671684 | Z56: 359.5365444 | AA56: 0 | AB56: 0 | AC56: 0 | AD56: 0 | AE56: 0 | AG56: 0 | AH56: 0 | AI56: 2315.924589 | AJ56: 143.3754977 | AK56: 1334.463777 | AL56: 361.7162033

Sheet Formy
A1: Rozloha A zón | B1: 1
A2: Terajší stav | D2: 1 | E2: 0.1504164563 | F2: 0.1532377127 | G2: 0.07452736363 | H2: 0.4225954285 | I2: 0.1951919214 | J2: 0.0611329773 | K2: 0.1234039319 | L2: 0.03503591379 | M2: 0.2412064586
A3: + nová zonácia TANAPu | D3: 2 | E3: 0.1504164563 | F3: 0.1532377127 | G3: 0.07452736363 | H3: 0.5669094594 | I3: 0.1951919214 | J3: 0.0611329773 | K3: 0.1234039319 | L3: 0.03503591379 | M3: 0.2412064586
A4: 25 % | D4: 3 | E4: 0.25 | F4: 0.25 | G4: 0.25 | H4: 0.5669094594 | I4: 0.25 | J4: 0.25 | K4: 0.25 | L4: 0.25 | M4: 0.25
A5: 50 % | D5: 4 | E5: 0.5 | F5: 0.5 | G5: 0.5 | H5: 0.5669094594 | I5: 0.5 | J5: 0.5 | K5: 0.5 | L5: 0.5 | M5: 0.5
A6: 75 % | D6: 5 | E6: 0.75 | F6: 0.75 | G6: 0.75 | H6: 0.75 | I6: 0.75 | J6: 0.75 | K6: 0.75 | L6: 0.75 | M6: 0.75
A8: Preferencia štátny vs. neštátny vlastník | B8: 2
A9: 15:85 | D9: 1 | E9: 0.85
A10: 50:50 | D10: 2 | E10: 0.5
A11: 85:15 | D11: 3 | E11: 0.15
A13: Rozloha národných parkov | B13: 2
A14: 125 % | D14: 1 | E14: 1.25
A15: 100 % | D15: 2 | E15: 1
A16: 75 % | D16: 3 | E16: 0.75
A17: 50 % | D17: 4 | E17: 0.5
A19: Veľkosť nárazníkovej zóny (m) | B19: 2
A20: 1000 m | D20: 1 | E20: 100 | F20: -0.511
A21: 500 m | D21: 2 | E21: 50 | F21: -0.477
A22: 300 m | D22: 3 | E22: 30 | F22: -0.461
A23: 100 m | D23: 4 | E23: 10 | F23: -0.449
A25: 750 m | D25: 5 | E25: 75 | F25: -0.494
A26: 250 m | D26: 6 | E26: 25 | F26: -0.459
A28: Základný scenár | B28: 1 | D28: 1 | E28: 27.5 | F28: 38.5 | G28: 17.3 | H28: 21.6 | J28: =VLOOKUP(Formy!$B$13,Formy!$D$14:$E$17,2,FALSE) -> 1 | K28: =VLOOKUP(Formy!$B$1,Formy!$D$2:$M$6,2,FALSE) -> 0.1504164563 | L28: =VLOOKUP(Formy!$B$8,Formy!$D$9:$E$11,2,FALSE) -> 0.5 | M28: =48.952624448*Kalkulačka!$M$6 -> 48.95262445 | N28: =55.752869536*Kalkulačka!$M$6 -> 55.75286954 | O28: =58.9648916215709*Kalkulačka!$M$6 -> 58.96489162 | P28: =3437.85619314206*Kalkulačka!$M$7 -> 3437.856193 | Q28: =3921*Kalkulačka!$M$7 -> 3921 | R28: =4141*Kalkulačka!$M$7 -> 4141
B29: 1 | D29: 2 | H29: 2.3 | I29: 7.3 | J29: =VLOOKUP(Formy!$B$13,Formy!$D$14:$E$17,2,FALSE) -> 1 | K29: =VLOOKUP(Formy!$B$1,Formy!$D$2:$M$6,3,FALSE) -> 0.1532377127 | L29: =VLOOKUP(Formy!$B$8,Formy!$D$9:$E$11,2,FALSE) -> 0.5 | M29: =43.909847072*Kalkulačka!$M$6 -> 43.90984707 | N29: =68.66640872*Kalkulačka!$M$6 -> 68.66640872 | O29: =51.7952577712647*Kalkulačka!$M$6 -> 51.79525777 | P29: =3107.88103568929*Kalkulačka!$M$7 -> 3107.881036 | Q29: =3921*Kalkulačka!$M$7 -> 3921 | R29: =3666*Kalkulačka!$M$7 -> 3666
B30: 2.5 | D30: 2 | J30: =VLOOKUP(Formy!$B$13,Formy!$D$14:$E$17,2,FALSE) -> 1 | K30: =VLOOKUP(Formy!$B$1,Formy!$D$2:$M$6,4,FALSE) -> 0.07452736363 | L30: =VLOOKUP(Formy!$B$8,Formy!$D$9:$E$11,2,FALSE) -> 0.5 | M30: =72.45808752*Kalkulačka!$M$6 -> 72.45808752 | N30: =72.89756656*Kalkulačka!$M$6 -> 72.89756656 | O30: =78.3246824028949*Kalkulačka!$M$6 -> 78.3246824 | P30: =3549.60496850945*Kalkulačka!$M$7 -> 3549.604969 | Q30: =3921*Kalkulačka!$M$7 -> 3921 | R30: =3837*Kalkulačka!$M$7 -> 3837
B31: 35 | D31: 2 | E31: =VLOOKUP(Formy!$B$48,Formy!$D$49:$G$50,2,0) -> 17.6 | F31: =VLOOKUP(Formy!$B$48,Formy!$D$49:$G$50,3,0) -> 3.7 | G31: =VLOOKUP(Formy!$B$48,Formy!$D$49:$G$50,4,0) -> 37.3 | J31: =VLOOKUP(Formy!$B$13,Formy!$D$14:$E$17,2,FALSE) -> 1 | K31: =VLOOKUP(Formy!$B$1,Formy!$D$2:$M$6,5,FALSE) -> 0.4225954285 | L31: =VLOOKUP(Formy!$B$8,Formy!$D$9:$E$11,2,FALSE) -> 0.5 | M31: =32.732413168*Kalkulačka!$M$6 -> 32.73241317 | N31: =51.144301936*Kalkulačka!$M$6 -> 51.14430194 | O31: =40.2718605139066*Kalkulačka!$M$6 -> 40.27186051 | P31: =2296.1210636809*Kalkulačka!$M$7 -> 2296.121064 | Q31: =3921*Kalkulačka!$M$7 -> 3921 | R31: =2825*Kalkulačka!$M$7 -> 2825
B32: 1500 | D32: 2 | I32: 6 | J32: =VLOOKUP(Formy!$B$13,Formy!$D$14:$E$17,2,FALSE) -> 1 | K32: =VLOOKUP(Formy!$B$1,Formy!$D$2:$M$6,6,FALSE) -> 0.1951919214 | L32: =VLOOKUP(Formy!$B$8,Formy!$D$9:$E$11,2,FALSE) -> 0.5 | M32: =54.34343824*Kalkulačka!$M$6 -> 54.34343824 | N32: =70.555465344*Kalkulačka!$M$6 -> 70.55546534 | O32: =81.6099645442344*Kalkulačka!$M$6 -> 81.60996454 | P32: =3060.44051784465*Kalkulačka!$M$7 -> 3060.440518 | Q32: =3921*Kalkulačka!$M$7 -> 3921 | R32: =4596*Kalkulačka!$M$7 -> 4596
B33: 40 | E33: 0.05 | J33: =VLOOKUP(Formy!$B$13,Formy!$D$14:$E$17,2,FALSE) -> 1 | K33: =VLOOKUP(Formy!$B$1,Formy!$D$2:$M$6,7,FALSE) -> 0.0611329773 | L33: =VLOOKUP(Formy!$B$8,Formy!$D$9:$E$11,2,FALSE) -> 0.5 | M33: =76.599535376*Kalkulačka!$M$6 -> 76.59953538 | N33: =89.024663728*Kalkulačka!$M$6 -> 89.02466373 | O33: =77.5952218214776*Kalkulačka!$M$6 -> 77.59522182 | P33: =3429.42232330301*Kalkulačka!$M$7 -> 3429.422323 | Q33: =3921*Kalkulačka!$M$7 -> 3921 | R33: =3474*Kalkulačka!$M$7 -> 3474
B34: 10 | J34: =VLOOKUP(Formy!$B$13,Formy!$D$14:$E$17,2,FALSE) -> 1 | K34: =VLOOKUP(Formy!$B$1,Formy!$D$2:$M$6,8,FALSE) -> 0.1234039319 | L34: =VLOOKUP(Formy!$B$8,Formy!$D$9:$E$11,2,FALSE) -> 0.5 | M34: =58.495618272*Kalkulačka!$M$6 -> 58.49561827 | N34: =76.032493264*Kalkulačka!$M$6 -> 76.03249326 | O34: =94.9210997631313*Kalkulačka!$M$6 -> 94.92109976 | P34: =3327.16165150455*Kalkulačka!$M$7 -> 3327.161652 | Q34: =3921*Kalkulačka!$M$7 -> 3921 | R34: =5399*Kalkulačka!$M$7 -> 5399
J35: =VLOOKUP(Formy!$B$13,Formy!$D$14:$E$17,2,FALSE) -> 1 | K35: =VLOOKUP(Formy!$B$1,Formy!$D$2:$M$6,9,FALSE) -> 0.03503591379 | L35: =VLOOKUP(Formy!$B$8,Formy!$D$9:$E$11,2,FALSE) -> 0.5 | M35: =67.729142208*Kalkulačka!$M$6 -> 67.72914221 | N35: =71.037760976*Kalkulačka!$M$6 -> 71.03776098 | O35: =82.0951413023086*Kalkulačka!$M$6 -> 82.0951413 | P35: =2545.9744576627*Kalkulačka!$M$7 -> 2545.974458 | Q35: =3921*Kalkulačka!$M$7 -> 3921 | R35: =3086*Kalkulačka!$M$7 -> 3086
J36: =VLOOKUP(Formy!$B$13,Formy!$D$14:$E$17,2,FALSE) -> 1 | K36: =VLOOKUP(Formy!$B$1,Formy!$D$2:$M$6,10,FALSE) -> 0.2412064586 | L36: =VLOOKUP(Formy!$B$8,Formy!$D$9:$E$11,2,FALSE) -> 0.5 | M36: =54.992841904*Kalkulačka!$M$6 -> 54.9928419 | N36: =67.470367328*Kalkulačka!$M$6 -> 67.47036733 | O36: =45.505043525192*Kalkulačka!$M$6 -> 45.50504353 | P36: =5219.51119664101*Kalkulačka!$M$7 -> 5219.511197 | Q36: =3921*Kalkulačka!$M$7 -> 3921 | R36: =4319*Kalkulačka!$M$7 -> 4319
A38: Horný scenár | B38: 2 | E38: 8000 | F38: 8000 | G38: 8000
B39: 1 | E39: 8000 | F39: 8000 | G39: 8000
B40: 6 | E40: 8000 | F40: 8000 | G40: 8000
B41: 35 | D41: 1 | E41: 8000 | F41: 8000 | G41: 8000
B42: 2000 | E42: 8000 | F42: 8000 | G42: 8000
B43: 113 | E43: 8000 | F43: 8000 | G43: 8000
B44: 10 | E44: 8000 | F44: 8000 | G44: 8000
E45: 8000 | F45: 8000 | G45: 8000
E46: 8000 | F46: 8000 | G46: 8000
A48: Dopad na štátne podniky | B48: 2
A49: Krátkodobý | D49: 1 | E49: 146.3133212 | F49: 108.65203 | G49: 119.9362643
A50: Strednodobý | D50: 2 | E50: 17.6 | F50: 3.7 | G50: 37.3

Sheet Porovnanie alternatív
B1: Nájmy | C1: Výkupy | D1: Zámeny
A2: 0 | B2: =$H$3+$H$4+H11 -> 3294641.539 | C2: =$I$3+$I$4+I11 -> 74469493.97 | D2: =$J$3+$J$4+J11 -> 2387266.829 | H2: Nájmy | I2: Výkupy | J2: Zámeny
A3: 1 | B3: =B2+$H$11/(1+Kalkulačka!$Q$9)^A3 -> 5999601.991 | C3: =C2+$I$11/(1+Kalkulačka!$Q$9)^A3 -> 75969246.51 | D3: =D2+$J$11/(1+Kalkulačka!$Q$9)^A3 -> 4228060.89 | F3: Jednorazové náklady | G3: Poplatky | H3: =Kalkulačka!$E$11 -> 454433.0636 | I3: =Kalkulačka!$E$11 -> 454433.0636 | J3: =Kalkulačka!$E$11 -> 454433.0636 | M3: Strata obcí | N3: Strata štátneho rozpočtu | O3: Strata ŠP
A4: 2 | B4: =B3+$H$11/(1+Kalkulačka!$Q$9)^A4 -> 8575754.803 | C4: =C3+$I$11/(1+Kalkulačka!$Q$9)^A4 -> 77397582.26 | D4: =D3+$J$11/(1+Kalkulačka!$Q$9)^A4 -> 5981198.092 | G4: Výkup | H4: 0 | I4: =Kalkulačka!K34 -> 72440320.74 | J4: 0 | L4: Veľká Fatra | M4: =(Kalkulačka!F40+Kalkulačka!G40)*(Kalkulačka!$U$5-Kalkulačka!$T$5) -> 8130.874672 | N4: =(Kalkulačka!F40+Kalkulačka!G40)*(Kalkulačka!$Q$4-Kalkulačka!$T$4) -> 9594.432113 | O4: =(Kalkulačka!F40-Podklady!I6)*Kalkulačka!$Q$4 -> 0
A5: 3 | B5: =B4+$H$11/(1+Kalkulačka!$Q$9)^A5 -> 11029233.67 | C5: =C4+$I$11/(1+Kalkulačka!$Q$9)^A5 -> 78757902.02 | D5: =D4+$J$11/(1+Kalkulačka!$Q$9)^A5 -> 7650852.57 | F5: Každoročné platby | G5: Nájom | H5: =Kalkulačka!E4 -> 1265468.31 | I5: 0 | J5: 0 | L5: Nízke Tatry | M5: =(Kalkulačka!F41+Kalkulačka!G41)*(Kalkulačka!$U$5-Kalkulačka!$T$5) -> 42444.90734 | N5: =(Kalkulačka!F41+Kalkulačka!G41)*(Kalkulačka!$Q$4-Kalkulačka!$T$4) -> 50084.99066 | O5: =(Kalkulačka!F41-Podklady!I7)*Kalkulačka!$Q$4 -> 0
A6: 4 | B6: =B5+$H$11/(1+Kalkulačka!$Q$9)^A6 -> 13365880.21 | C6: =C5+$I$11/(1+Kalkulačka!$Q$9)^A6 -> 80053444.65 | D6: =D5+$J$11/(1+Kalkulačka!$Q$9)^A6 -> 9240999.692 | G6: Zmluvná starostlivosť | H6: =Kalkulačka!$E$5 -> 1574740.165 | I6: =Kalkulačka!$E$5 -> 1574740.165 | J6: =Kalkulačka!$E$5 -> 1574740.165 | L6: PIENAP | M6: =(Kalkulačka!F42+Kalkulačka!G42)*(Kalkulačka!$U$5-Kalkulačka!$T$5) -> 245.599145 | N6: =(Kalkulačka!F42+Kalkulačka!G42)*(Kalkulačka!$R$4-Kalkulačka!$T$4) -> 830.1251101 | O6: =(Kalkulačka!F42-Podklady!I8)*Kalkulačka!$R$4 -> 8.206768598e-13
A7: 5 | B7: =B6+$H$11/(1+Kalkulačka!$Q$9)^A7 -> 15591257.87 | C7: =C6+$I$11/(1+Kalkulačka!$Q$9)^A7 -> 81287294.78 | D7: =D6+$J$11/(1+Kalkulačka!$Q$9)^A7 -> 10755425.52 | G7: Daň obce | H7: =Kalkulačka!$E$7 -> -1.720579235e-11 | I7: =Kalkulačka!$E$7 -> -1.720579235e-11 | J7: =Kalkulačka!$E$7+M13 -> 126024.9256 | L7: TANAP | M7: =(Kalkulačka!F43+Kalkulačka!G43)*(Kalkulačka!$U$5-Kalkulačka!$T$5) -> 40525.16899 | N7: =(Kalkulačka!F43+Kalkulačka!G43)*(Kalkulačka!$R$4-Kalkulačka!$T$4) -> 136975.0712 | O7: =(Kalkulačka!F43-Podklady!I9)*Kalkulačka!$R$4 -> -7.003109204e-11
A8: 6 | B8: =B7+$H$11/(1+Kalkulačka!$Q$9)^A8 -> 17710665.16 | C8: =C7+$I$11/(1+Kalkulačka!$Q$9)^A8 -> 82462390.13 | D8: =D7+$J$11/(1+Kalkulačka!$Q$9)^A8 -> 12197735.84 | G8: Strata ŠP | H8: =Kalkulačka!$E$8 -> -6.625100468e-12 | I8: =Kalkulačka!$E$8 -> -6.625100468e-12 | J8: =Kalkulačka!$E$8+O13 -> -7.583551564e-11 | L8: Malá Fatra | M8: =(Kalkulačka!F44+Kalkulačka!G44)*(Kalkulačka!$U$5-Kalkulačka!$T$5) -> 16916.7982 | N8: =(Kalkulačka!F44+Kalkulačka!G44)*(Kalkulačka!$Q$4-Kalkulačka!$T$4) -> 19961.82187 | O8: =(Kalkulačka!F44-Podklady!I10)*Kalkulačka!$Q$4 -> 0
A9: 7 | B9: =B8+$H$11/(1+Kalkulačka!$Q$9)^A9 -> 19729148.3 | C9: =C8+$I$11/(1+Kalkulačka!$Q$9)^A9 -> 83581528.57 | D9: =D8+$J$11/(1+Kalkulačka!$Q$9)^A9 -> 13571364.71 | G9: Daň rozpočet | H9: =Kalkulačka!$E$34 -> -1.077665956e-10 | I9: =Kalkulačka!$E$34 -> -1.077665956e-10 | J9: =Kalkulačka!$E$34+N13 -> 232068.6741 | L9: Poloniny | M9: =(Kalkulačka!F45+Kalkulačka!G45)*(Kalkulačka!$U$5-Kalkulačka!$T$5) -> 3106.092183 | N9: =(Kalkulačka!F45+Kalkulačka!G45)*(Kalkulačka!$S$4-Kalkulačka!$T$4) -> -2671.239278 | O9: =(Kalkulačka!F45-Podklady!I11)*Kalkulačka!$S$4 -> 0
A10: 8 | B10: =B9+$H$11/(1+Kalkulačka!$Q$9)^A10 -> 21651513.19 | C10: =C9+$I$11/(1+Kalkulačka!$Q$9)^A10 -> 84647374.7 | D10: =D9+$J$11/(1+Kalkulačka!$Q$9)^A10 -> 14879582.68 | G10: Inštitucionálne zmeny | H10: =Kalkulačka!$F$34 -> -1.091393642e-11 | I10: =Kalkulačka!$F$34 -> -1.091393642e-11 | J10: =Kalkulačka!$F$34 -> -1.091393642e-11 | L10: Muránska planina | M10: =(Kalkulačka!F46+Kalkulačka!G46)*(Kalkulačka!$U$5-Kalkulačka!$T$5) -> 1169.686863 | N10: =(Kalkulačka!F46+Kalkulačka!G46)*(Kalkulačka!$Q$4-Kalkulačka!$T$4) -> 1380.230499 | O10: =(Kalkulačka!F46-Podklady!I12)*Kalkulačka!$Q$4 -> 0
A11: 9 | B11: =B10+$H$11/(1+Kalkulačka!$Q$9)^A11 -> 23482336.9 | C11: =C10+$I$11/(1+Kalkulačka!$Q$9)^A11 -> 85662466.25 | D11: =D10+$J$11/(1+Kalkulačka!$Q$9)^A11 -> 16125504.56 | G11: TOTAL | H11: =SUM(H5:H10) -> 2840208.475 | I11: =SUM(I5:I10) -> 1574740.165 | J11: =SUM(J5:J10) -> 1932833.765 | L11: Slovenský kras | M11: =(Kalkulačka!F47+Kalkulačka!G47)*(Kalkulačka!$U$5-Kalkulačka!$T$5) -> 2697.666909 | N11: =(Kalkulačka!F47+Kalkulačka!G47)*(Kalkulačka!$Q$4-Kalkulačka!$T$4) -> 3183.246953 | O11: =(Kalkulačka!F47-Podklady!I13)*Kalkulačka!$Q$4 -> 0
A12: 10 | B12: =B11+$H$11/(1+Kalkulačka!$Q$9)^A12 -> 25225978.53 | C12: =C11+$I$11/(1+Kalkulačka!$Q$9)^A12 -> 86629220.11 | D12: =D11+$J$11/(1+Kalkulačka!$Q$9)^A12 -> 17312096.82 | L12: Slovenský raj | M12: =(Kalkulačka!F48+Kalkulačka!G48)*(Kalkulačka!$U$5-Kalkulačka!$T$5) -> 10788.13133 | N12: =(Kalkulačka!F48+Kalkulačka!G48)*(Kalkulačka!$Q$4-Kalkulačka!$T$4) -> 12729.99497 | O12: =(Kalkulačka!F48-Podklady!I14)*Kalkulačka!$Q$4 -> 0
A13: 11 | B13: =B12+$H$11/(1+Kalkulačka!$Q$9)^A13 -> 26886589.6 | C13: =C12+$I$11/(1+Kalkulačka!$Q$9)^A13 -> 87549938.07 | D13: =D12+$J$11/(1+Kalkulačka!$Q$9)^A13 -> 18442184.7 | M13: =SUM(M4:M12) -> 126024.9256 | N13: =SUM(N4:N12) -> 232068.6741 | O13: =SUM(O4:O12) -> -6.921041518e-11
A14: 12 | B14: =B13+$H$11/(1+Kalkulačka!$Q$9)^A14 -> 28468123.95 | C14: =C13+$I$11/(1+Kalkulačka!$Q$9)^A14 -> 88426812.31 | D14: =D13+$J$11/(1+Kalkulačka!$Q$9)^A14 -> 19518458.86
A15: 13 | B15: =B14+$H$11/(1+Kalkulačka!$Q$9)^A15 -> 29974347.15 | C15: =C14+$I$11/(1+Kalkulačka!$Q$9)^A15 -> 89261930.65 | D15: =D14+$J$11/(1+Kalkulačka!$Q$9)^A15 -> 20543481.87
A16: 14 | B16: =B15+$H$11/(1+Kalkulačka!$Q$9)^A16 -> 31408845.43 | C16: =C15+$I$11/(1+Kalkulačka!$Q$9)^A16 -> 90057281.44 | D16: =D15+$J$11/(1+Kalkulačka!$Q$9)^A16 -> 21519694.27
A17: 15 | B17: =B16+$H$11/(1+Kalkulačka!$Q$9)^A17 -> 32775034.27 | C17: =C16+$I$11/(1+Kalkulačka!$Q$9)^A17 -> 90814758.38 | D17: =D16+$J$11/(1+Kalkulačka!$Q$9)^A17 -> 22449420.35
A18: 16 | B18: =B17+$H$11/(1+Kalkulačka!$Q$9)^A18 -> 34076166.49 | C18: =C17+$I$11/(1+Kalkulačka!$Q$9)^A18 -> 91536165 | D18: =D17+$J$11/(1+Kalkulačka!$Q$9)^A18 -> 23334873.77
A19: 17 | B19: =B18+$H$11/(1+Kalkulačka!$Q$9)^A19 -> 35315340.04 | C19: =C18+$I$11/(1+Kalkulačka!$Q$9)^A19 -> 92223218.91 | D19: =D18+$J$11/(1+Kalkulačka!$Q$9)^A19 -> 24178162.74
A20: 18 | B20: =B19+$H$11/(1+Kalkulačka!$Q$9)^A20 -> 36495505.33 | C20: =C19+$I$11/(1+Kalkulačka!$Q$9)^A20 -> 92877555.98 | D20: =D19+$J$11/(1+Kalkulačka!$Q$9)^A20 -> 24981295.09
A21: 19 | B21: =B20+$H$11/(1+Kalkulačka!$Q$9)^A21 -> 37619472.27 | C21: =C20+$I$11/(1+Kalkulačka!$Q$9)^A21 -> 93500734.14 | D21: =D20+$J$11/(1+Kalkulačka!$Q$9)^A21 -> 25746183.05
A22: 20 | B22: =B21+$H$11/(1+Kalkulačka!$Q$9)^A22 -> 38689916.97 | C22: =C21+$I$11/(1+Kalkulačka!$Q$9)^A22 -> 94094237.14 | D22: =D21+$J$11/(1+Kalkulačka!$Q$9)^A22 -> 26474647.76
A23: 21 | B23: =B22+$H$11/(1+Kalkulačka!$Q$9)^A23 -> 39709388.12 | C23: =C22+$I$11/(1+Kalkulačka!$Q$9)^A23 -> 94659478.1 | D23: =D22+$J$11/(1+Kalkulačka!$Q$9)^A23 -> 27168423.69
A24: 22 | B24: =B23+$H$11/(1+Kalkulačka!$Q$9)^A24 -> 40680313.02 | C24: =C23+$I$11/(1+Kalkulačka!$Q$9)^A24 -> 95197802.82 | D24: =D23+$J$11/(1+Kalkulačka!$Q$9)^A24 -> 27829162.66
A25: 23 | B25: =B24+$H$11/(1+Kalkulačka!$Q$9)^A25 -> 41605003.4 | C25: =C24+$I$11/(1+Kalkulačka!$Q$9)^A25 -> 95710493.04 | D25: =D24+$J$11/(1+Kalkulačka!$Q$9)^A25 -> 28458437.87
A26: 24 | B26: =B25+$H$11/(1+Kalkulačka!$Q$9)^A26 -> 42485660.91 | C26: =C25+$I$11/(1+Kalkulačka!$Q$9)^A26 -> 96198769.43 | D26: =D25+$J$11/(1+Kalkulačka!$Q$9)^A26 -> 29057747.6
A27: 25 | B27: =B26+$H$11/(1+Kalkulačka!$Q$9)^A27 -> 43324382.34 | C27: =C26+$I$11/(1+Kalkulačka!$Q$9)^A27 -> 96663794.56 | D27: =D26+$J$11/(1+Kalkulačka!$Q$9)^A27 -> 29628518.77
A28: 26 | B28: =B27+$H$11/(1+Kalkulačka!$Q$9)^A28 -> 44123164.66 | C28: =C27+$I$11/(1+Kalkulačka!$Q$9)^A28 -> 97106675.64 | D28: =D27+$J$11/(1+Kalkulačka!$Q$9)^A28 -> 30172110.36
A29: 27 | B29: =B28+$H$11/(1+Kalkulačka!$Q$9)^A29 -> 44883909.73 | C29: =C28+$I$11/(1+Kalkulačka!$Q$9)^A29 -> 97528467.15 | D29: =D28+$J$11/(1+Kalkulačka!$Q$9)^A29 -> 30689816.63
A30: 28 | B30: =B29+$H$11/(1+Kalkulačka!$Q$9)^A30 -> 45608428.84 | C30: =C29+$I$11/(1+Kalkulačka!$Q$9)^A30 -> 97930173.35 | D30: =D29+$J$11/(1+Kalkulačka!$Q$9)^A30 -> 31182870.23
A31: 29 | B31: =B30+$H$11/(1+Kalkulačka!$Q$9)^A31 -> 46298447.04 | C31: =C30+$I$11/(1+Kalkulačka!$Q$9)^A31 -> 98312750.68 | D31: =D30+$J$11/(1+Kalkulačka!$Q$9)^A31 -> 31652445.08
A32: 30 | B32: =B31+$H$11/(1+Kalkulačka!$Q$9)^A32 -> 46955607.23 | C32: =C31+$I$11/(1+Kalkulačka!$Q$9)^A32 -> 98677110.04 | D32: =D31+$J$11/(1+Kalkulačka!$Q$9)^A32 -> 32099659.22
A33: 31 | B33: =B32+$H$11/(1+Kalkulačka!$Q$9)^A33 -> 47581474.07 | C33: =C32+$I$11/(1+Kalkulačka!$Q$9)^A33 -> 99024118.95 | D33: =D32+$J$11/(1+Kalkulačka!$Q$9)^A33 -> 32525577.46
A34: 32 | B34: =B33+$H$11/(1+Kalkulačka!$Q$9)^A34 -> 48177537.74 | C34: =C33+$I$11/(1+Kalkulačka!$Q$9)^A34 -> 99354603.64 | D34: =D33+$J$11/(1+Kalkulačka!$Q$9)^A34 -> 32931213.87
A35: 33 | B35: =B34+$H$11/(1+Kalkulačka!$Q$9)^A35 -> 48745217.42 | C35: =C34+$I$11/(1+Kalkulačka!$Q$9)^A35 -> 99669350.95 | D35: =D34+$J$11/(1+Kalkulačka!$Q$9)^A35 -> 33317534.26
A36: 34 | B36: =B35+$H$11/(1+Kalkulačka!$Q$9)^A36 -> 49285864.74 | C36: =C35+$I$11/(1+Kalkulačka!$Q$9)^A36 -> 99969110.3 | D36: =D35+$J$11/(1+Kalkulačka!$Q$9)^A36 -> 33685458.45
A37: 35 | B37: =B36+$H$11/(1+Kalkulačka!$Q$9)^A37 -> 49800766.94 | C37: =C36+$I$11/(1+Kalkulačka!$Q$9)^A37 -> 100254595.4 | D37: =D36+$J$11/(1+Kalkulačka!$Q$9)^A37 -> 34035862.43
A38: 36 | B38: =B37+$H$11/(1+Kalkulačka!$Q$9)^A38 -> 50291149.99 | C38: =C37+$I$11/(1+Kalkulačka!$Q$9)^A38 -> 100526486 | D38: =D37+$J$11/(1+Kalkulačka!$Q$9)^A38 -> 34369580.51
A39: 37 | B39: =B38+$H$11/(1+Kalkulačka!$Q$9)^A39 -> 50758181.47 | C39: =C38+$I$11/(1+Kalkulačka!$Q$9)^A39 -> 100785429.4 | D39: =D38+$J$11/(1+Kalkulačka!$Q$9)^A39 -> 34687407.26
A40: 38 | B40: =B39+$H$11/(1+Kalkulačka!$Q$9)^A40 -> 51202973.36 | C40: =C39+$I$11/(1+Kalkulačka!$Q$9)^A40 -> 101032042.1 | D40: =D39+$J$11/(1+Kalkulačka!$Q$9)^A40 -> 34990099.39
A41: 39 | B41: =B40+$H$11/(1+Kalkulačka!$Q$9)^A41 -> 51626584.67 | C41: =C40+$I$11/(1+Kalkulačka!$Q$9)^A41 -> 101266911.4 | D41: =D40+$J$11/(1+Kalkulačka!$Q$9)^A41 -> 35278377.62
A42: 40 | B42: =B41+$H$11/(1+Kalkulačka!$Q$9)^A42 -> 52030024.02 | C42: =C41+$I$11/(1+Kalkulačka!$Q$9)^A42 -> 101490596.4 | D42: =D41+$J$11/(1+Kalkulačka!$Q$9)^A42 -> 35552928.31
A43: 41 | B43: =B42+$H$11/(1+Kalkulačka!$Q$9)^A43 -> 52414251.98 | C43: =C42+$I$11/(1+Kalkulačka!$Q$9)^A43 -> 101703629.8 | D43: =D42+$J$11/(1+Kalkulačka!$Q$9)^A43 -> 35814405.16
A44: 42 | B44: =B43+$H$11/(1+Kalkulačka!$Q$9)^A44 -> 52780183.36 | C44: =C43+$I$11/(1+Kalkulačka!$Q$9)^A44 -> 101906518.7 | D44: =D43+$J$11/(1+Kalkulačka!$Q$9)^A44 -> 36063430.73
A45: 43 | B45: =B44+$H$11/(1+Kalkulačka!$Q$9)^A45 -> 53128689.44 | C45: =C44+$I$11/(1+Kalkulačka!$Q$9)^A45 -> 102099746.3 | D45: =D44+$J$11/(1+Kalkulačka!$Q$9)^A45 -> 36300597.94
A46: 44 | B46: =B45+$H$11/(1+Kalkulačka!$Q$9)^A46 -> 53460599.99 | C46: =C45+$I$11/(1+Kalkulačka!$Q$9)^A46 -> 102283772.5 | D46: =D45+$J$11/(1+Kalkulačka!$Q$9)^A46 -> 36526471.47
A47: 45 | B47: =B46+$H$11/(1+Kalkulačka!$Q$9)^A47 -> 53776705.28 | C47: =C46+$I$11/(1+Kalkulačka!$Q$9)^A47 -> 102459035.6 | D47: =D46+$J$11/(1+Kalkulačka!$Q$9)^A47 -> 36741589.12
A48: 46 | B48: =B47+$H$11/(1+Kalkulačka!$Q$9)^A48 -> 54077757.94 | C48: =C47+$I$11/(1+Kalkulačka!$Q$9)^A48 -> 102625952.8 | D48: =D47+$J$11/(1+Kalkulačka!$Q$9)^A48 -> 36946463.07
A49: 47 | B49: =B48+$H$11/(1+Kalkulačka!$Q$9)^A49 -> 54364474.75 | C49: =C48+$I$11/(1+Kalkulačka!$Q$9)^A49 -> 102784921.6 | D49: =D48+$J$11/(1+Kalkulačka!$Q$9)^A49 -> 37141581.12
A50: 48 | B50: =B49+$H$11/(1+Kalkulačka!$Q$9)^A50 -> 54637538.38 | C50: =C49+$I$11/(1+Kalkulačka!$Q$9)^A50 -> 102936320.5 | D50: =D49+$J$11/(1+Kalkulačka!$Q$9)^A50 -> 37327407.84
A51: 49 | B51: =B50+$H$11/(1+Kalkulačka!$Q$9)^A51 -> 54897598.99 | C51: =C50+$I$11/(1+Kalkulačka!$Q$9)^A51 -> 103080509.8 | D51: =D50+$J$11/(1+Kalkulačka!$Q$9)^A51 -> 37504385.66
A52: 50 | B52: =B51+$H$11/(1+Kalkulačka!$Q$9)^A52 -> 55145275.75 | C52: =C51+$I$11/(1+Kalkulačka!$Q$9)^A52 -> 103217833 | D52: =D51+$J$11/(1+Kalkulačka!$Q$9)^A52 -> 37672935.97
A53: 51 | B53: =B52+$H$11/(1+Kalkulačka!$Q$9)^A53 -> 55381158.38 | C53: =C52+$I$11/(1+Kalkulačka!$Q$9)^A53 -> 103348617.1 | D53: =D52+$J$11/(1+Kalkulačka!$Q$9)^A53 -> 37833460.07
A54: 52 | B54: =B53+$H$11/(1+Kalkulačka!$Q$9)^A54 -> 55605808.51 | C54: =C53+$I$11/(1+Kalkulačka!$Q$9)^A54 -> 103473173.3 | D54: =D53+$J$11/(1+Kalkulačka!$Q$9)^A54 -> 37986340.17
A55: 53 | B55: =B54+$H$11/(1+Kalkulačka!$Q$9)^A55 -> 55819761.01 | C55: =C54+$I$11/(1+Kalkulačka!$Q$9)^A55 -> 103591798.2 | D55: =D54+$J$11/(1+Kalkulačka!$Q$9)^A55 -> 38131940.26
A56: 54 | B56: =B55+$H$11/(1+Kalkulačka!$Q$9)^A56 -> 56023525.3 | C56: =C55+$I$11/(1+Kalkulačka!$Q$9)^A56 -> 103704774.4 | D56: =D55+$J$11/(1+Kalkulačka!$Q$9)^A56 -> 38270607.02
A57: 55 | B57: =B56+$H$11/(1+Kalkulačka!$Q$9)^A57 -> 56217586.52 | C57: =C56+$I$11/(1+Kalkulačka!$Q$9)^A57 -> 103812370.7 | D57: =D56+$J$11/(1+Kalkulačka!$Q$9)^A57 -> 38402670.6
A58: 56 | B58: =B57+$H$11/(1+Kalkulačka!$Q$9)^A58 -> 56402406.74 | C58: =C57+$I$11/(1+Kalkulačka!$Q$9)^A58 -> 103914843.4 | D58: =D57+$J$11/(1+Kalkulačka!$Q$9)^A58 -> 38528445.43
A59: 57 | B59: =B58+$H$11/(1+Kalkulačka!$Q$9)^A59 -> 56578425.99 | C59: =C58+$I$11/(1+Kalkulačka!$Q$9)^A59 -> 104012436.4 | D59: =D58+$J$11/(1+Kalkulačka!$Q$9)^A59 -> 38648230.99
A60: 58 | B60: =B59+$H$11/(1+Kalkulačka!$Q$9)^A60 -> 56746063.37 | C60: =C59+$I$11/(1+Kalkulačka!$Q$9)^A60 -> 104105382.2 | D60: =D59+$J$11/(1+Kalkulačka!$Q$9)^A60 -> 38762312.47
A61: 59 | B61: =B60+$H$11/(1+Kalkulačka!$Q$9)^A61 -> 56905718.03 | C61: =C60+$I$11/(1+Kalkulačka!$Q$9)^A61 -> 104193901.9 | D61: =D60+$J$11/(1+Kalkulačka!$Q$9)^A61 -> 38870961.5
A62: 60 | B62: =B61+$H$11/(1+Kalkulačka!$Q$9)^A62 -> 57057770.07 | C62: =C61+$I$11/(1+Kalkulačka!$Q$9)^A62 -> 104278206.5 | D62: =D61+$J$11/(1+Kalkulačka!$Q$9)^A62 -> 38974436.77
A63: 61 | B63: =B62+$H$11/(1+Kalkulačka!$Q$9)^A63 -> 57202581.55 | C63: =C62+$I$11/(1+Kalkulačka!$Q$9)^A63 -> 104358496.5 | D63: =D62+$J$11/(1+Kalkulačka!$Q$9)^A63 -> 39072984.64
A64: 62 | B64: =B63+$H$11/(1+Kalkulačka!$Q$9)^A64 -> 57340497.24 | C64: =C63+$I$11/(1+Kalkulačka!$Q$9)^A64 -> 104434963.2 | D64: =D63+$J$11/(1+Kalkulačka!$Q$9)^A64 -> 39166839.76
A65: 63 | B65: =B64+$H$11/(1+Kalkulačka!$Q$9)^A65 -> 57471845.51 | C65: =C64+$I$11/(1+Kalkulačka!$Q$9)^A65 -> 104507788.7 | D65: =D64+$J$11/(1+Kalkulačka!$Q$9)^A65 -> 39256225.59
A66: 64 | B66: =B65+$H$11/(1+Kalkulačka!$Q$9)^A66 -> 57596939.11 | C66: =C65+$I$11/(1+Kalkulačka!$Q$9)^A66 -> 104577146.2 | D66: =D65+$J$11/(1+Kalkulačka!$Q$9)^A66 -> 39341354.95
A67: 65 | B67: =B66+$H$11/(1+Kalkulačka!$Q$9)^A67 -> 57716075.87 | C67: =C66+$I$11/(1+Kalkulačka!$Q$9)^A67 -> 104643201 | D67: =D66+$J$11/(1+Kalkulačka!$Q$9)^A67 -> 39422430.53
A68: 66 | B68: =B67+$H$11/(1+Kalkulačka!$Q$9)^A68 -> 57829539.45 | C68: =C67+$I$11/(1+Kalkulačka!$Q$9)^A68 -> 104706110.4 | D68: =D67+$J$11/(1+Kalkulačka!$Q$9)^A68 -> 39499645.37
A69: 67 | B69: =B68+$H$11/(1+Kalkulačka!$Q$9)^A69 -> 57937600 | C69: =C68+$I$11/(1+Kalkulačka!$Q$9)^A69 -> 104766024 | D69: =D68+$J$11/(1+Kalkulačka!$Q$9)^A69 -> 39573183.31
A70: 68 | B70: =B69+$H$11/(1+Kalkulačka!$Q$9)^A70 -> 58040514.81 | C70: =C69+$I$11/(1+Kalkulačka!$Q$9)^A70 -> 104823084.7 | D70: =D69+$J$11/(1+Kalkulačka!$Q$9)^A70 -> 39643219.44
A71: 69 | B71: =B70+$H$11/(1+Kalkulačka!$Q$9)^A71 -> 58138528.92 | C71: =C70+$I$11/(1+Kalkulačka!$Q$9)^A71 -> 104877428.1 | D71: =D70+$J$11/(1+Kalkulačka!$Q$9)^A71 -> 39709920.52
A72: 70 | B72: =B71+$H$11/(1+Kalkulačka!$Q$9)^A72 -> 58231875.69 | C72: =C71+$I$11/(1+Kalkulačka!$Q$9)^A72 -> 104929183.8 | D72: =D71+$J$11/(1+Kalkulačka!$Q$9)^A72 -> 39773445.36
A73: 71 | B73: =B72+$H$11/(1+Kalkulačka!$Q$9)^A73 -> 58320777.37 | C73: =C72+$I$11/(1+Kalkulačka!$Q$9)^A73 -> 104978474.9 | D73: =D72+$J$11/(1+Kalkulačka!$Q$9)^A73 -> 39833945.21
A74: 72 | B74: =B73+$H$11/(1+Kalkulačka!$Q$9)^A74 -> 58405445.64 | C74: =C73+$I$11/(1+Kalkulačka!$Q$9)^A74 -> 105025418.8 | D74: =D73+$J$11/(1+Kalkulačka!$Q$9)^A74 -> 39891564.11
A75: 73 | B75: =B74+$H$11/(1+Kalkulačka!$Q$9)^A75 -> 58486082.09 | C75: =C74+$I$11/(1+Kalkulačka!$Q$9)^A75 -> 105070127.3 | D75: =D74+$J$11/(1+Kalkulačka!$Q$9)^A75 -> 39946439.25
A76: 74 | B76: =B75+$H$11/(1+Kalkulačka!$Q$9)^A76 -> 58562878.7 | C76: =C75+$I$11/(1+Kalkulačka!$Q$9)^A76 -> 105112706.8 | D76: =D75+$J$11/(1+Kalkulačka!$Q$9)^A76 -> 39998701.29
A77: 75 | B77: =B76+$H$11/(1+Kalkulačka!$Q$9)^A77 -> 58636018.34 | C77: =C76+$I$11/(1+Kalkulačka!$Q$9)^A77 -> 105153258.8 | D77: =D76+$J$11/(1+Kalkulačka!$Q$9)^A77 -> 40048474.67
A78: 76 | B78: =B77+$H$11/(1+Kalkulačka!$Q$9)^A78 -> 58705675.13 | C78: =C77+$I$11/(1+Kalkulačka!$Q$9)^A78 -> 105191879.7 | D78: =D77+$J$11/(1+Kalkulačka!$Q$9)^A78 -> 40095877.88
A79: 77 | B79: =B78+$H$11/(1+Kalkulačka!$Q$9)^A79 -> 58772014.94 | C79: =C78+$I$11/(1+Kalkulačka!$Q$9)^A79 -> 105228661.4 | D79: =D78+$J$11/(1+Kalkulačka!$Q$9)^A79 -> 40141023.8
A80: 78 | B80: =B79+$H$11/(1+Kalkulačka!$Q$9)^A80 -> 58835195.71 | C80: =C79+$I$11/(1+Kalkulačka!$Q$9)^A80 -> 105263691.7 | D80: =D79+$J$11/(1+Kalkulačka!$Q$9)^A80 -> 40184019.91
A81: 79 | B81: =B80+$H$11/(1+Kalkulačka!$Q$9)^A81 -> 58895367.86 | C81: =C80+$I$11/(1+Kalkulačka!$Q$9)^A81 -> 105297053.9 | D81: =D80+$J$11/(1+Kalkulačka!$Q$9)^A81 -> 40224968.58
A82: 80 | B82: =B81+$H$11/(1+Kalkulačka!$Q$9)^A82 -> 58952674.68 | C82: =C81+$I$11/(1+Kalkulačka!$Q$9)^A82 -> 105328827.4 | D82: =D81+$J$11/(1+Kalkulačka!$Q$9)^A82 -> 40263967.32
A83: 81 | B83: =B82+$H$11/(1+Kalkulačka!$Q$9)^A83 -> 59007252.6 | C83: =C82+$I$11/(1+Kalkulačka!$Q$9)^A83 -> 105359087.9 | D83: =D82+$J$11/(1+Kalkulačka!$Q$9)^A83 -> 40301108.98
A84: 82 | B84: =B83+$H$11/(1+Kalkulačka!$Q$9)^A84 -> 59059231.58 | C84: =C83+$I$11/(1+Kalkulačka!$Q$9)^A84 -> 105387907.4 | D84: =D83+$J$11/(1+Kalkulačka!$Q$9)^A84 -> 40336481.99
A85: 83 | B85: =B84+$H$11/(1+Kalkulačka!$Q$9)^A85 -> 59108735.36 | C85: =C84+$I$11/(1+Kalkulačka!$Q$9)^A85 -> 105415354.5 | D85: =D84+$J$11/(1+Kalkulačka!$Q$9)^A85 -> 40370170.57
A86: 84 | B86: =B85+$H$11/(1+Kalkulačka!$Q$9)^A86 -> 59155881.82 | C86: =C85+$I$11/(1+Kalkulačka!$Q$9)^A86 -> 105441494.6 | D86: =D85+$J$11/(1+Kalkulačka!$Q$9)^A86 -> 40402254.93
A87: 85 | B87: =B86+$H$11/(1+Kalkulačka!$Q$9)^A87 -> 59200783.21 | C87: =C86+$I$11/(1+Kalkulačka!$Q$9)^A87 -> 105466390 | D87: =D86+$J$11/(1+Kalkulačka!$Q$9)^A87 -> 40432811.46
A88: 86 | B88: =B87+$H$11/(1+Kalkulačka!$Q$9)^A88 -> 59243546.44 | C88: =C87+$I$11/(1+Kalkulačka!$Q$9)^A88 -> 105490099.9 | D88: =D87+$J$11/(1+Kalkulačka!$Q$9)^A88 -> 40461912.92
A89: 87 | B89: =B88+$H$11/(1+Kalkulačka!$Q$9)^A89 -> 59284273.33 | C89: =C88+$I$11/(1+Kalkulačka!$Q$9)^A89 -> 105512680.7 | D89: =D88+$J$11/(1+Kalkulačka!$Q$9)^A89 -> 40489628.6
A90: 88 | B90: =B89+$H$11/(1+Kalkulačka!$Q$9)^A90 -> 59323060.84 | C90: =C89+$I$11/(1+Kalkulačka!$Q$9)^A90 -> 105534186.2 | D90: =D89+$J$11/(1+Kalkulačka!$Q$9)^A90 -> 40516024.48
A91: 89 | B91: =B90+$H$11/(1+Kalkulačka!$Q$9)^A91 -> 59360001.32 | C91: =C90+$I$11/(1+Kalkulačka!$Q$9)^A91 -> 105554667.7 | D91: =D90+$J$11/(1+Kalkulačka!$Q$9)^A91 -> 40541163.41
A92: 90 | B92: =B91+$H$11/(1+Kalkulačka!$Q$9)^A92 -> 59395182.74 | C92: =C91+$I$11/(1+Kalkulačka!$Q$9)^A92 -> 105574173.9 | D92: =D91+$J$11/(1+Kalkulačka!$Q$9)^A92 -> 40565105.26
A93: 91 | B93: =B92+$H$11/(1+Kalkulačka!$Q$9)^A93 -> 59428688.85 | C93: =C92+$I$11/(1+Kalkulačka!$Q$9)^A93 -> 105592751.2 | D93: =D92+$J$11/(1+Kalkulačka!$Q$9)^A93 -> 40587907.01
A94: 92 | B94: =B93+$H$11/(1+Kalkulačka!$Q$9)^A94 -> 59460599.43 | C94: =C93+$I$11/(1+Kalkulačka!$Q$9)^A94 -> 105610443.9 | D94: =D93+$J$11/(1+Kalkulačka!$Q$9)^A94 -> 40609622.97
A95: 93 | B95: =B94+$H$11/(1+Kalkulačka!$Q$9)^A95 -> 59490990.46 | C95: =C94+$I$11/(1+Kalkulačka!$Q$9)^A95 -> 105627294 | D95: =D94+$J$11/(1+Kalkulačka!$Q$9)^A95 -> 40630304.84
A96: 94 | B96: =B95+$H$11/(1+Kalkulačka!$Q$9)^A96 -> 59519934.3 | C96: =C95+$I$11/(1+Kalkulačka!$Q$9)^A96 -> 105643341.8 | D96: =D95+$J$11/(1+Kalkulačka!$Q$9)^A96 -> 40650001.85
A97: 95 | B97: =B96+$H$11/(1+Kalkulačka!$Q$9)^A97 -> 59547499.85 | C97: =C96+$I$11/(1+Kalkulačka!$Q$9)^A97 -> 105658625.4 | D97: =D96+$J$11/(1+Kalkulačka!$Q$9)^A97 -> 40668760.91
A98: 96 | B98: =B97+$H$11/(1+Kalkulačka!$Q$9)^A98 -> 59573752.77 | C98: =C97+$I$11/(1+Kalkulačka!$Q$9)^A98 -> 105673181.2 | D98: =D97+$J$11/(1+Kalkulačka!$Q$9)^A98 -> 40686626.68
A99: 97 | B99: =B98+$H$11/(1+Kalkulačka!$Q$9)^A99 -> 59598755.54 | C99: =C98+$I$11/(1+Kalkulačka!$Q$9)^A99 -> 105687043.9 | D99: =D98+$J$11/(1+Kalkulačka!$Q$9)^A99 -> 40703641.7
A100: 98 | B100: =B99+$H$11/(1+Kalkulačka!$Q$9)^A100 -> 59622567.71 | C100: =C99+$I$11/(1+Kalkulačka!$Q$9)^A100 -> 105700246.4 | D100: =D99+$J$11/(1+Kalkulačka!$Q$9)^A100 -> 40719846.49
A101: 99 | B101: =B100+$H$11/(1+Kalkulačka!$Q$9)^A101 -> 59645245.96 | C101: =C100+$I$11/(1+Kalkulačka!$Q$9)^A101 -> 105712820.3 | D101: =D100+$J$11/(1+Kalkulačka!$Q$9)^A101 -> 40735279.61
A102: 100 | B102: =B101+$H$11/(1+Kalkulačka!$Q$9)^A102 -> 59666844.3 | C102: =C101+$I$11/(1+Kalkulačka!$Q$9)^A102 -> 105724795.4 | D102: =D101+$J$11/(1+Kalkulačka!$Q$9)^A102 -> 40749977.83

Sheet zam
B2: VÝSLEDKY
E3: Priemerné ročné náklady za obdobie 8 rokov
B4: Podiel bezzásahu | D4: Počet nezamestnaných | E4: Nižší výber daní a odvodov | F4: Dávka v nezamestnanosti | G4: Dávky v hmotnej núdzi | H4: Spolu | I4: Alternatíva
B5: 0.5 | D5: 124.6435169 | E5: 190524.5986 | F5: 35065.71414 | G5: 10723.021 | H5: =SUM(E5:G5) -> 236313.3337 | I5: =IF(Formy!B1<4,0,IF(Formy!B1=4,zam!H5,IF(Formy!B13=3,zam!H7,zam!H6))) -> 0
B6: 0.75 | D6: 154.8016931 | E6: 236250.5022 | F6: 43481.48554 | G6: 13296.54605 | H6: =SUM(E6:G6) -> 293028.5338
B7: 75 % + zmenšený park | D7: 8.039366271 | E7: 12193.57431 | F7: 2244.205705 | G7: 686.2733443 | H7: =SUM(E7:G7) -> 15124.05336
B10: Viac v exceli Výpočty
